Cogmind - Beta 16 @@@ ROGUE MODE // 2025.10.24 @ 12:04:03 Player: Savant Result: Establishing 0b11! Performance ------------- Evolutions (9) 4500 Regions Visited (26) 5200 Robots Destroyed (459) 2295 Value Destroyed (29657) 29657 Prototype IDs (386) 7720 Alien Tech Used (12) 2400 Bonus (36960) 36960 TOTAL SCORE: 88732 Bonus ------- High Alert Combat Kills 3947 Follower Combat Kills 4613 Entered Garrisons 1000 Used RIF Installer 3000 Aligned with FarCom 300 Destroyed MAIN.C Guards 500 Met MAIN.C 5000 Destroyed MAIN.C Shell 5000 Destroyed MAIN.C 10000 Met Architect 300 Destroyed A8 300 Win 3000 Cogmind --------- Core Integrity 180/1600 Matter 151/300 Energy 1078/1100 System Corruption 0% Temperature Cool (10) Movement Treading (142) Location 0b11 Command Parts ------- > --- POWER (3) -------- Singularity Reactor > --- PROPULSION (6) --- Biometal Medium Treads Biometal Heavy Treads Biometal Heavy Treads Experimental Biometal Medium Treads > --- UTILITY (13) ----- Advanced Cooling System Huge Storage Unit Experimental Targeting Computer Experimental Targeting Computer Experimental Core Analyzer Improved Armor Integrity Analyzer Advanced Kinecellerator Quantum Capacitor Centrium Light Armor Plating Centrium Medium Armor Plating Graphene Brace (fused) Improved Force Field > --- WEAPON (3) ------- Cooled Nova Cannon Core Cannon > --- INVENTORY (29) --- Quantum Reactor Vortex Chain Reactor Advanced Heavy Siege Treads Advanced Heavy Siege Treads Experimental Energy Well (573) Experimental Energy Well (0) Experimental Energy Well (0) Experimental Matter Compressor (500) Quantum Capacitor Layered Light Armor Plating Medium Insulated Plating Medium Insulated Plating Experimental Focal Shield Advanced EM Shield Improved Force Field Heavy Quantum Rifle Enhanced Hardcell Cannon AWS/Autocannon Ragnarok Missile Launcher Peak State ------------ > --- POWER ------------ Reinforced Quantum Reactor Vortex Chain Reactor > --- PROPULSION ------- Armored Heavy Treads Biometal Heavy Treads High-density Centrium Heavy Treads > --- UTILITY ---------- Advanced Cooling System Experimental Cooling System Huge Storage Unit Spectral Analyzer Experimental Core Analyzer Experimental Transmission Jammer Centrium Light Armor Plating Centrium Medium Armor Plating Graphene Brace Improved Focal Shield Experimental Focal Shield Improved Force Field Experimental System Purifier > --- WEAPON ----------- YOLO Cannon Cooled Nova Cannon > --- INVENTORY -------- Quantum Reactor Light Quantum Reactor Vortex Chain Reactor Biometal Heavy Treads Experimental Energy Well Experimental Energy Well Experimental Energy Well High-capacity Matter Pod Experimental Matter Compressor Advanced EM Shield High-powered Transdimensional Reconstructor High-powered Transdimensional Reconstructor Core Reset Matrix Enhanced Nova Cannon Cooled Nova Cannon Core Cannon Hardcell Cannon Heavy Gauss Cannon Hypervelocity Mass Driver Enhanced Hardcell Cannon AWS/Autocannon Compact Tesla Bomb Launcher Ragnarok Missile Launcher Advanced Remote Datajack [Rating: 244] Favorites ----------- Power Quantum Reactor Engine Ion Engine Power Core Micro Fission Core Reactor Quantum Reactor Propulsion Light Treads Treads Light Treads Utility Huge Storage Unit Device Experimental Transmission Jammer Storage Huge Storage Unit Processor Advanced Signal Interpreter Hackware Relay Coupler [Sentry] Protection Centrium Light Armor Plating Artifact Phase Armor Weapon Advanced Remote Datajack Energy Gun Gamma Rifle Energy Cannon Cooled Nova Cannon Ballistic Gun Improved Assault Rifle Ballistic Cannon Light Cannon Launcher Compact Tesla Bomb Launcher Special Weapon Advanced Remote Datajack Impact Weapon Heavy Hammer Special Melee Weapon Improved Datajack Build | -11 -10 -10 -9 -9 -9 -8 -8 -8 -8 -7 -6 -5 -4 -4 -3 -3 -3 -3 -3 -2 -2 -2 -2 -1 -1 -1 ------- Run | Yrd Mat Min Mat Min Exi Min Mat Gar Mat Fac Fac Fac Fac Gar Res Gar Res Qua Gar Res Tes Sec Gar Acc Com Ac0 Slots Evolved 18 | . . . 2 . . . 2 . . 2 2 2 2 . 2 . . . . 2 . . . 2 . . Power 2 | . . . . . . . . . . . . . 1 . . . . . . 1 . . . . . . Propulsion 4 | . . . 1 . . . 1 . . . . 1 . . 1 . . . . . . . . . . . Utility 11 | . . . 1 . . . 1 . . 2 1 1 1 . 1 . . . . 1 . . . 2 . . Weapon 1 | . . . . . . . . . . . 1 . . . . . . . . . . . . . . . Parts Attached 328 | 8 8 . 21 3 1 5 12 9 6 6 6 5 37 19 7 19 24 21 16 6 21 11 11 1 40 5 Power 37 | 1 2 . 1 . . 1 2 . . . . . 6 5 . . 1 4 3 1 2 4 . . 4 . Engine 4 | 1 2 . . . . . 1 . . . . . . . . . . . . . . . . . . . Core 5 | . . . 1 . . 1 1 . . . . . 2 . . . . . . . . . . . . . Reactor 28 | . . . . . . . . . . . . . 4 5 . . 1 4 3 1 2 4 . . 4 . Propulsion 50 | 2 . . 5 . . 2 3 1 4 4 . 1 8 2 1 3 . 1 4 . 5 . . . 4 . Treads 50 | 2 . . 5 . . 2 3 1 4 4 . 1 8 2 1 3 . 1 4 . 5 . . . 4 . Leg . | . . . . . . . . . . . . . . . . . . . . . . . . . . . Wheel . | . . . . . . . . . . . . . . . . . . . . . . . . . . . Hover . | . . . . . . . . . . . . . . . . . . . . . . . . . . . Flight . | . . . . . . . . . . . . . . . . . . . . . . . . . . . Utility 176 | 2 3 . 7 3 1 1 4 7 2 2 3 4 15 11 4 14 20 7 6 5 8 5 11 1 26 4 Device 63 | 1 . . 3 2 . 1 . . . 1 . 1 11 2 3 4 12 2 1 . 4 1 . . 11 3 Storage 11 | 1 2 . 1 . 1 . . . . . . . 1 1 1 . 1 . . 1 . . . . 1 . Processor 11 | . . . . . . . . . . 1 1 . . . . . . . . . 1 2 1 . 4 1 Hackware 72 | . . . 1 . . . 1 6 2 . 1 3 2 7 . 10 6 4 5 3 3 1 10 1 6 . Protection 18 | . 1 . 2 1 . . 3 1 . . 1 . 1 1 . . 1 1 . . . 1 . . 4 . Artifact 1 | . . . . . . . . . . . . . . . . . . . . 1 . . . . . . Weapon 65 | 3 3 . 8 . . 1 3 1 . . 3 . 8 1 2 2 3 9 3 . 6 2 . . 6 1 Energy Gun 15 | 2 . . 2 . . . 1 . . . 1 . 1 . . 1 2 3 2 . . . . . . . Energy Cannon 22 | . 1 . 1 . . . . . . . . . 5 1 2 . . 3 1 . 5 1 . . 2 . Ballistic Gun 5 | 1 . . 3 . . . 1 . . . . . . . . . . . . . . . . . . . Ballistic Cannon 5 | . 1 . 1 . . . . . . . . . . . . . . . . . . . . . 3 . Launcher 4 | . . . . . . 1 1 . . . . . 1 . . . . . . . . . . . . 1 Special Weapon 12 | . 1 . . . . . . . . . 2 . 1 . . 1 1 3 . . 1 1 . . 1 . Impact Weapon 1 | . . . 1 . . . . . . . . . . . . . . . . . . . . . . . Slashing Weapon . | . . . . . . . . . . . . . . . . . . . . . . . . . . . Piercing Weapon . | . . . . . . . . . . . . . . . . . . . . . . . . . . . Special Melee Weapon 1 | . . . . . . . . 1 . . . . . . . . . . . . . . . . . . Unidentified Prototypes 16 | . . . . . . . . . . 1 . 1 7 . . . . 2 . . 4 . 1 . . . Parts Lost 44 | . . . 4 2 . . 3 . . . . . 6 1 . 4 3 2 2 . 2 2 . . 10 3 Power 6 | . . . 1 . . . . . . . . . 1 1 . . . . . . 1 . . . 2 . Propulsion 7 | . . . 1 . . . . . . . . . 2 . . . . . 1 . 1 . . . 2 . Utility 19 | . . . 1 2 . . 2 . . . . . 2 . . 1 3 . . . . 2 . . 4 2 Weapon 12 | . . . 1 . . . 1 . . . . . 1 . . 3 . 2 1 . . . . . 2 1 Highest Loss Streak 7 | . . . 1 1 . . 1 . . . . . 2 1 . 2 2 1 1 . 2 1 . . 7 1 To Critical Strikes 2 | . . . . . . . . . . . . . . . . . . . 1 . 1 . . . . . Average Backups 18 | 4 9 14 14 18 19 19 15 14 14 14 14 19 19 18 20 20 21 20 19 19 19 19 22 22 22 21 Power . | . 1 1 . . . . . . . . . . . . 1 . . . . . . . . . 1 2 Propulsion 1 | 3 4 4 1 2 3 2 1 1 1 2 3 2 1 . . . . . . . . 2 2 2 1 2 Utility 9 | . 1 3 6 6 6 6 5 6 7 6 5 7 10 13 15 16 18 13 10 10 10 8 11 12 7 11 Weapon 5 | . 3 4 6 8 9 8 7 5 5 4 4 6 5 3 4 3 3 4 4 4 4 4 4 4 8 4 Tool/Special . | . . . . . . . . . . . . . . . . . . . . . . . . . . . Unused Backups 94 | . 3 3 7 2 1 . 3 5 . 1 . 1 8 3 . 7 5 4 2 . 1 10 4 1 13 10 Power 14 | . . . 1 . . . . 2 . . . . 1 . . . . . . . 1 3 . . 4 2 Propulsion 12 | . 3 1 2 . . . . . . 1 . . . . . . . 1 . . . 1 1 . . 2 Utility 41 | . . 1 2 1 1 . . 3 . . . . 4 3 . 6 4 1 1 . . 3 1 1 4 5 Weapon 20 | . . 1 2 1 . . 2 . . . . 1 3 . . . . 2 1 . . 1 2 . 3 1 Tool/Special 7 | . . . . . . . 1 . . . . . . . . 1 1 . . . . 2 . . 2 . Average Slot Usage (%) 87 | . 100 100 99 99 77 99 99 99 100 95 95 93 89 83 83 83 81 79 79 85 82 79 79 83 79 73 Engine 3 | . 14 14 8 11 11 6 . 9 9 7 6 5 1 . . . . . . . . . . . . . Reactor 6 | . . . . . . . . . . . . . 4 8 9 9 8 9 9 12 12 12 13 12 8 4 Treads 20 | . 28 28 33 33 33 33 35 36 36 30 26 29 22 15 17 17 14 14 14 17 13 13 13 12 12 16 Device 14 | . 12 2 1 10 11 11 9 4 . 10 6 7 17 17 20 20 19 18 20 25 16 17 16 15 23 19 Storage 6 | . 14 14 11 11 11 11 9 9 9 7 6 5 5 6 4 4 4 4 4 5 4 4 4 4 4 4 Processor 3 | . . . . . . . . . . 3 6 5 5 5 4 4 4 4 4 4 4 5 6 8 8 16 Hackware 8 | . . . 9 . . . 8 11 18 15 18 16 10 7 9 9 14 11 5 2 13 7 6 16 4 . Protection 6 | . 1 11 10 11 11 10 9 11 8 3 7 8 3 4 2 2 . 1 4 4 4 5 5 4 7 8 Energy Gun 3 | . . . 1 22 . 22 11 2 . . 3 5 3 1 . 2 4 3 5 4 . . . . . . Energy Cannon 5 | . 13 14 5 . . . . . . . . . 5 9 8 6 3 4 2 4 7 6 7 8 6 2 Ballistic Gun 1 | . 1 . 6 . . . 1 5 14 7 3 . . . . . . . . . . . . . . . Ballistic Cannon 1 | . 12 14 8 . . . . . . . . . . . . . . . . . . . . . . 2 Special Weapon 2 | . . . . . . . . . . . 3 4 2 3 4 3 3 3 4 4 4 4 4 4 2 . Peak Build Rating 244 | 7 8 10 22 26 26 30 34 36 37 56 73 85 150 153 160 165 165 180 180 186 205 224 222 221 244 238 Average Rating 127 | 5 7 8 18 20 17 27 32 33 34 51 66 80 121 144 154 159 158 166 166 178 189 209 216 220 231 231 On Entrance 103 | . 7 8 10 22 21 26 30 29 34 35 56 73 85 135 144 155 165 158 178 168 177 202 203 211 220 236 Avg Prop Armor Cover (%) 5 | 14 . . . . . . . . . 7 6 . . . . . . . 4 4 4 . . . . . Naked Turns . | . . . . . . . . . . . . . . . . . . . . . . . . . . . Heaviest Build 256 | 13 34 34 54 60 100 102 102 72 63 70 75 117 143 163 164 180 171 153 153 162 174 215 215 195 256 229 Greatest Support 255 | 40 40 40 60 60 60 63 83 80 80 84 104 124 182 182 199 225 225 225 210 175 245 255 255 255 255 235 Greatest Overweight (x) 1 | 1 . . . . 1 1 1 . . . . . 1 . . . . . 1 . 1 . . . 1 . Average Overweight (x) . | . . . . . 1 1 . . . . . . . . . . . . . . . . . . . . Largest Inventory Capacity 29 | 8 15 15 20 20 25 25 25 20 20 20 20 25 25 25 25 25 25 25 25 25 25 29 29 29 29 29 Average Capacity 23 | 7 12 15 17 20 24 25 20 20 20 20 20 24 25 25 25 25 25 25 25 25 25 26 29 29 29 29 Most Carried 29 | 8 13 15 20 20 25 25 24 20 20 20 20 25 25 25 25 25 25 25 25 25 25 29 29 29 29 29 Average Carried 22 | 4 9 14 15 19 22 24 20 19 19 19 18 23 24 24 24 24 24 24 24 24 24 25 28 28 27 26 Final Capacity 29 | 8 15 15 20 20 25 25 20 20 20 20 20 25 25 25 25 25 25 25 25 25 25 29 29 29 29 29 Final Carried 29 | 8 12 15 20 20 23 25 20 20 20 20 20 25 25 25 25 25 25 25 25 25 25 29 29 29 29 25 Class Distribution -------------------- 26% | Mutant 21% | Botlord-Tank 17% | Bothacker-Tank 9% | Hauler-Tank 5% | Bothacker-Skirmisher 3% | Bothacker-Mutant 3% | Commander-Mutant Dominant Class ---------------- Mutant | -10/Materials Mutant | -10/Mines Mutant | -9/Materials Mutant | -9/Mines Mutant | -9/Exiles Mutant | -8/Mines Mutant | -8/Materials Commander-Mutant | -8/Garrison Bothacker-Mutant | -8/Materials Bothacker-Mutant | -7/Factory Bothacker-Mutant | -6/Factory Bothacker-Tank | -5/Factory Bothacker-Skirmisher | -4/Factory Commander-Tank | -4/Garrison Bothacker-Tank | -3/Research Botlord-Tank | -3/Garrison Botlord-Tank | -3/Research Bothacker-Tank | -3/Quarantine Bothacker-Tank | -3/Garrison Botlord-Tank | -2/Research Botlord-Tank | -2/Testing Bothacker-Tank | -2/Section 7 Botlord-Tank | -2/Garrison Botlord-Tank | -1/Access Hauler-Tank | -1/Command Hauler-Gunner | -1/Access_0 Resources | -11 -10 -10 -9 -9 -9 -8 -8 -8 -8 -7 -6 -5 -4 -4 -3 -3 -3 -3 -3 -2 -2 -2 -2 -1 -1 -1 ----------- Run | Yrd Mat Min Mat Min Exi Min Mat Gar Mat Fac Fac Fac Fac Gar Res Gar Res Qua Gar Res Tes Sec Gar Acc Com Ac0 Matter Collected 12917 | 252 344 30 1108 184 50 189 273 619 200 103 112 160 1006 738 102 708 921 1120 774 170 814 906 283 244 1436 71 Remotely . | . . . . . . . . . . . . . . . . . . . . . . . . . . . Salvage Created 26319 | 12 545 . 1476 278 . 372 1095 525 270 29 48 105 2337 1650 216 1403 1287 1553 1825 511 1652 3564 1330 236 3749 251 Parts 1212 | 5 39 . 88 15 . 20 55 23 11 3 3 5 94 62 7 64 70 99 83 28 61 181 48 13 125 10 Haulers Intercepted 8 | . . . 5 . . . 1 . 1 . . . 1 . . . . . . . . . . . . . Recyclers Shooed 11 | . . . . . . . 2 . . . . . 1 . . . 1 . . 1 1 . . 1 4 . Parts Field Recycled . | . . . . . . . . . . . . . . . . . . . . . . . . . . . Retrieved Matter . | . . . . . . . . . . . . . . . . . . . . . . . . . . . Parts Self-Destructed . | . . . . . . . . . . . . . . . . . . . . . . . . . . . Prevented . | . . . . . . . . . . . . . . . . . . . . . . . . . . . Parts Restored . | . . . . . . . . . . . . . . . . . . . . . . . . . . . Kills | -11 -10 -10 -9 -9 -9 -8 -8 -8 -8 -7 -6 -5 -4 -4 -3 -3 -3 -3 -3 -2 -2 -2 -2 -1 -1 -1 ------- Run | Yrd Mat Min Mat Min Exi Min Mat Gar Mat Fac Fac Fac Fac Gar Res Gar Res Qua Gar Res Tes Sec Gar Acc Com Ac0 Combat Hostiles Destroyed 385 | . 15 . 29 10 . 6 20 20 4 . 1 2 36 25 2 17 18 24 27 5 16 43 15 4 40 6 Melee 6 | . . . . . . . 2 1 . . . . . . . 1 2 . . . . . . . . . Guns 86 | . 4 . 6 9 . 6 11 6 4 . 1 2 11 . . 1 5 4 12 1 3 . . . . . Cannons 181 | . 11 . 22 . . . . . . . . . 15 8 . 13 7 16 4 2 8 24 8 4 35 4 AOE 38 | . . . . 1 . . 6 11 . . . . 5 3 1 . 1 2 3 . . 3 . . . 2 Classes Destroyed 24 | 1 6 . 5 . . . . 1 . . 1 . 4 . 1 . . . . . 1 2 . 1 1 . Worker 15 | . 1 . 3 . . 2 . . . 2 . . . . . . 4 . . . 1 2 . . . . Builder 10 | . 1 . 2 . . 1 2 . . . . . . . . . 2 . . . 1 1 . . . . Tunneler 1 | 1 . . . . . . . . . . . . . . . . . . . . . . . . . . Hauler 8 | . . . 5 . . . 1 . 1 . . . 1 . . . . . . . . . . . . . Recycler 10 | . . . 2 . . . 2 . . . . . 1 . . . 1 . . 1 2 . . . 1 . Operator 4 | . 1 . 2 . . . . . . . . . . . . . . . . . . . . . 1 . Watcher 22 | . 3 . 3 . . . 3 . . . . . . . 1 . . 1 . . 1 4 . . 6 . Swarmer 83 | . 6 . 11 7 . . 8 5 . . . . 4 5 . 5 6 4 11 . 2 5 . . 4 . Cutter 8 | . . . . . . . . . . . . . 4 2 . . . . . . . 2 . . . . Saboteur 1 | . . . . . . . . . . . . . 1 . . . . . . . . . . . . . Grunt 95 | . 9 . 10 2 . 4 10 9 2 . . . 3 11 . 2 . 5 9 . 4 3 6 . 6 . Brawler 7 | . . . 1 1 . 1 . . 2 . . . 2 . . . . . . . . . . . . . Duelist 12 | . . . 1 . . 1 . 3 . . . 2 . 1 . . . . . . . 2 2 . . . Protector 2 | . . . . . . . . . . . . . . . . . . . . . . . . . 2 . Researcher 1 | . . . . . . . . . . . . . . . . . . . . . . 1 . . . . Sentry 22 | . . . 6 . . . 2 2 . . . . 2 1 . . . . . 3 . 4 . . 2 . Specialist 9 | . . . . . . . . . . . . . 4 1 . 3 1 . . . . . . . . . Hunter 33 | . . . . . . . . 1 . . . . 4 2 1 1 3 1 6 . . 5 6 . 3 . Programmer 90 | . . . . . . . . . . . 1 . 9 2 . 5 8 14 2 2 10 19 . 3 15 . Heavy 3 | . . . . . . . . . . . . . 3 . . . . . . . . . . . . . Behemoth 7 | . . . . . . . . . . . . . . . 1 1 . . 1 . . 1 1 . 2 . M Guard 1 | . . . . . . . . . . . . . . . . . . . . . . . . . 1 . Enhanced Grunt 5 | . . . . . . . . . . . . . . . . . . . . . . . . . . 5 CL-0N3 Special 1 | . . . . . . . . . . . . . . . . . . . . . . . . 1 . . Combat Programmer 2 | . . . . . . . . . . . . . . . . . . . . . . . . . 2 . Executioner 3 | . . . . . . . . . . . . . . . . . . . . . . 2 . . 1 . Fortress 1 | . . . . . . . . . . . . . . . . . . . . . 1 . . . . . Best Kill Streak 12 | 1 5 . 5 4 . 3 12 5 3 1 1 2 11 5 1 3 5 4 5 3 3 7 6 2 8 3 Combat Bots Only 10 | . 3 . 5 4 . 3 10 5 3 . 1 2 10 5 1 3 3 4 5 3 3 6 6 2 3 3 Max Kills in Single Turn 5 | 1 2 . 1 2 . 1 5 2 1 1 1 1 2 2 1 1 1 2 2 1 1 2 2 1 1 1 Gunslinging 1 | . . . . 1 . . . . . . . . . . . . . . . . . . . . . . Exploded 5 | . . . . 1 . . 5 2 . . . . 2 2 1 . 1 2 2 . . 2 . . . 1 Melee 1 | . . . . . . . 1 1 . . . . . . . 1 1 . . . . . . . . . Uniques/NPCs Destroyed 3 | . . . . . . . . . . . . . . . . . . . . . . . . . 2 1 MAIN.C Shell (-1/Command) MAIN.C (-1/Command) A8 (-1/Access_0) Combat | -11 -10 -10 -9 -9 -9 -8 -8 -8 -8 -7 -6 -5 -4 -4 -3 -3 -3 -3 -3 -2 -2 -2 -2 -1 -1 -1 -------- Run | Yrd Mat Min Mat Min Exi Min Mat Gar Mat Fac Fac Fac Fac Gar Res Gar Res Qua Gar Res Tes Sec Gar Acc Com Ac0 Hostile Shots Fired 2479 | . 67 2 126 26 . 20 71 66 22 26 8 7 252 104 12 155 209 156 164 15 70 284 101 38 267 211 Missed 702 | . 30 1 29 12 . 4 17 18 4 6 3 1 80 26 5 45 62 42 53 4 17 77 31 6 77 52 Intercepted 2 | . . . . . . . . . . . . . . . . . . . . . . . . . 2 . Hits 1777 | . 37 1 97 14 . 16 54 48 18 20 5 6 172 78 7 110 147 114 111 11 53 207 70 32 190 159 Melee 42 | . . . 3 1 . 4 . . 3 . . . 9 3 . . . . . . . 12 1 . . 6 Projectile 1735 | . 37 1 94 13 . 12 54 48 15 20 5 6 163 75 7 110 147 114 111 11 53 195 69 32 190 153 AOE 8 | . . . . . . . . . 2 . . . . . . . . . . . . 2 . . 3 1 Critical Strikes 95 | . . . 1 . . . . 4 2 . . 1 9 5 . 6 8 4 6 . 10 17 1 4 13 4 Actively Blocked 22 | . . . . . . . . . . . . . 1 3 . 2 1 . . . . . . . 11 4 Part Disruptions 7 | . . . . . . . . . . . . . . . . 1 1 . . . . 1 . . 3 1 Damage Taken 28142 | . 366 7 1120 214 . 359 787 825 345 290 75 193 3332 1565 124 1675 1915 1823 1550 139 816 2403 681 472 3491 3575 Core 2137 | . 46 . 143 24 . 93 58 111 15 35 . . 233 90 22 94 195 72 81 12 34 202 52 63 170 292 Absorbed by Shields 9997 | . . . . . . . . . . . . . . 100 . 333 658 . 682 147 367 2456 723 487 1813 2231 Reduced by Siege Mode 751 | . . . . . . . . . . . . . . 9 . 52 19 73 18 . 43 143 18 . 118 258 Ignored by Resistances 3647 | . . . . . . . . . . . . . . 21 . 224 707 624 107 . . 335 . 99 1530 . Regen/Repaired (Parts) 3778 | . . . 11 . . . 212 . . . 75 41 . 341 . . . 602 . . . 2261 . . 235 . Core Remaining (%) 69 | 100 . 81 . . . 35 . . 66 95 100 100 . 71 . . . . 59 . . . 43 . . 11 Volleys Fired 2129 | 1 55 . 105 13 . 17 39 32 15 1 4 6 139 129 22 162 176 143 165 39 155 262 98 48 242 61 Largest 3 | 2 2 . 2 2 . 2 2 2 2 1 1 1 3 2 1 1 2 2 1 2 1 2 1 1 2 1 Hottest 304 | 60 100 . 100 90 . 90 90 68 46 23 23 5 304 208 120 120 195 218 113 180 120 300 94 94 300 300 Shots Fired 2596 | 2 103 . 207 26 . 36 76 44 30 1 8 20 246 136 22 162 190 143 166 41 156 251 94 48 301 87 Gun 656 | 2 30 . 59 26 . 36 75 28 30 1 6 14 102 3 . 11 53 31 102 18 29 . . . . . Cannon 1588 | . 66 . 146 . . . . . . . . . 116 110 20 119 108 70 35 14 97 224 76 36 268 83 Launcher 40 | . . . . . . . 1 16 . . . . 2 4 . . 4 1 3 . . 5 . . . 4 Special 312 | . 7 . 2 . . . . . . . 2 6 26 19 2 32 25 41 26 9 30 22 18 12 33 . Kinetic 345 | 1 48 . 138 . . . 25 16 30 1 2 . . . . . . . . . . . . . 58 26 Thermal 1236 | 1 44 . 64 . . . . . . . 4 14 198 38 11 113 108 70 46 14 86 150 17 35 166 57 Explosive 21 | . . . . . . . 1 16 . . . . . . . . . . . . . . . . . 4 Electromagnetic 691 | . 11 . 5 26 . 36 50 12 . . . . 22 79 9 17 57 32 94 18 40 79 59 1 44 . Robot Hit Streak 37 | 2 15 . 14 6 . 9 10 21 22 6 11 12 23 11 4 13 15 12 11 11 12 37 9 8 23 35 Robot Miss Streak 7 | . 6 . 5 4 . 2 7 3 2 . 1 1 3 3 4 4 4 2 5 2 3 3 3 3 3 2 Penetration Max . | . . . . . . . . . . . . . . . . . . . . . . . . . . . Secondary Targets 9 | . 1 . . 4 . 1 2 . 1 . . . . . . . . . . . . . . . . . Max Gunslinging Chain 1 | . 1 . . 1 . 1 1 . 1 . . . . . . . . . . . . . . . . . Capacitor 1366 | . . . . . . . . . . . . . 43 111 20 130 92 99 137 30 126 222 76 36 187 57 Autonomous 196 | . . . . . . . . . . . 4 14 93 . . . . . . . . . . . 58 27 Shots Hit Robots 1719 | 2 50 . 125 21 . 30 59 51 30 7 9 21 172 74 7 104 107 99 92 29 90 151 48 30 230 81 Core Hits 688 | 1 23 . 53 14 . 20 47 38 11 1 1 5 59 25 4 29 30 30 36 9 24 64 23 8 94 39 Critical Kills 19 | . . . 1 . . . . . 1 . . . 2 1 . 1 1 . . 1 4 3 1 . 3 . Critical Parts Destroyed 9 | . . . . . . . 3 1 . . . . . . . . . . . . . . . . 2 3 Critical Strikes 43 | . . . 2 . . . 3 1 1 . . . 3 3 1 1 1 2 . 1 4 7 1 . 8 4 Burn 1 | . . . . . . . . . . . . . 1 . . . . . . . . . . . . . Meltdown 18 | . . . 1 . . . . . . . . . 2 1 . 1 1 . . 1 4 3 1 . 3 . Destroy 7 | . . . . . . . . 1 1 . . . . . . . . . . . . . . . 2 3 Blast 4 | . . . 1 . . . . . . . . . . . . . . . . . . . . . 2 1 Corrupt 10 | . . . . . . . . . . . . . . 2 1 . . 2 . . . 4 . . 1 . Smash 3 | . . . . . . . 3 . . . . . . . . . . . . . . . . . . . Melee Attacks 96 | . . . 16 . . . 19 44 6 7 2 2 . . . . . . . . . . . . . . Impact 65 | . . . 16 . . . 19 25 . 3 . 2 . . . . . . . . . . . . . . Slashing . | . . . . . . . . . . . . . . . . . . . . . . . . . . . Piercing . | . . . . . . . . . . . . . . . . . . . . . . . . . . . Sneak Attacks 30 | . . . 3 . . . 2 11 4 6 2 2 . . . . . . . . . . . . . . Combat Hostiles 1 | . . . . . . . 1 . . . . . . . . . . . . . . . . . . . Follow-up Attacks . | . . . . . . . . . . . . . . . . . . . . . . . . . . . Damage Inflicted 64559 | 20 890 . 2401 421 . 720 1882 2141 382 135 142 459 5200 2821 459 3605 3778 2891 2860 800 3018 6809 1913 926 14432 5454 Guns 11072 | 20 196 . 608 268 . 512 929 317 382 15 142 338 2716 . . 195 1003 581 1745 477 628 . . . . . Cannons 45346 | . 694 . 1558 . . . . . . . . . 2342 2472 324 3363 2508 2185 837 323 2351 6349 1695 912 13287 4146 Explosions 6659 | . . . . 153 . 186 656 1446 . . . . 138 333 135 . 145 125 278 . 39 460 218 . 1039 1308 Melee 1142 | . . . 226 . . . 297 378 . 120 . 121 . . . . . . . . . . . . . . Ramming 340 | . . . 9 . . 22 . . . . . . 4 16 . 47 122 . . . . . . 14 106 . Kinetic 8497 | 10 418 . 1418 . . . 253 164 382 15 41 . . . . . . . . . . . . . 4134 1662 Thermal 35479 | 10 399 . 670 153 . 186 359 . . . 101 338 4525 551 240 3325 2508 2185 983 323 1986 3959 314 865 9015 2484 Explosive 3051 | . . . . . . . 297 1446 . . . . . . . . . . . . . . . . . 1308 Electromagnetic 16050 | . 73 . 78 268 . 512 676 153 . . . . 671 2254 219 233 1148 706 1877 477 1032 2850 1599 47 1177 . Impact 1142 | . . . 226 . . . 297 378 . 120 . 121 . . . . . . . . . . . . . . Slashing . | . . . . . . . . . . . . . . . . . . . . . . . . . . . Piercing . | . . . . . . . . . . . . . . . . . . . . . . . . . . . Highest Corruption 27 | . . . 3 7 7 7 . . . . 2 1 7 8 . . 7 7 7 2 10 27 27 2 10 . Average Corruption 7 | . . . 2 6 7 7 . . . . 1 1 6 7 . . 2 2 7 1 4 16 27 2 4 . Corruption Purged 17 | . . . . . . . . . . . . . . . . . 7 . . . . . . . 10 . Corruption Blocked . | . . . . . . . . . . . . . . . . . . . . . . . . . . . Effects 655 | . . . 40 26 23 43 . . . . 4 2 23 63 . . 32 24 56 1 48 133 60 6 71 . Message Errors 146 | . . . 15 8 4 9 . . . . 2 1 . 14 . . 9 4 13 . 11 25 9 1 21 . Matter Fused 145 | . . . 10 7 8 13 . . . . 1 . 8 20 . . 6 6 12 . 4 22 13 1 14 . Heat Flow Errors 70 | . . . 3 6 3 3 . . . . . . 2 4 . . 4 2 4 . 10 16 7 1 5 . Energy Discharges 75 | . . . 8 1 2 3 . . . . . . 5 5 . . 2 3 10 . 6 16 3 1 10 . Parts Rejected 14 | . . . . . . . . . . . . 1 1 1 . . 4 . 2 . . 3 1 . 1 . Parts Fused 6 | . . . . . . . . . . . . . . 1 . . . 1 1 . . . . . 3 . Data Loss (minor) 76 | . . . 2 2 3 5 . . . . 1 . . 6 . . 2 3 6 . 7 21 12 2 4 . Data Loss (major) 38 | . . . 1 2 2 2 . . . . . . 1 3 . . 4 4 3 . 6 4 1 . 5 . Misfires 28 | . . . . . . 4 . . . . . . 1 7 . . . . 2 1 2 5 3 . 3 . Alerts 17 | . . . . . 1 2 . . . . . . 2 1 . . . . 2 . 1 3 3 . 2 . Misdirections 3 | . . . . . . . . . . . . . . . . . . . . . . 1 1 . 1 . Weapon Failures 37 | . . . 1 . . 2 . . . . . . 3 1 . . 1 1 1 . 1 17 7 . 2 . Overload Shots 4 | . . . . . . . . . . . . . . . . . . . . . . 1 . . 3 . Overflow Damage 2355 | . . . 75 . . 3 224 187 . 45 . . 50 67 29 251 228 155 31 38 191 181 . 71 424 105 Projectiles 1660 | . . . 19 . . . . . . . . . 50 53 . 222 208 155 24 38 191 177 . 71 347 105 Explosions 245 | . . . . . . 3 63 87 . . . . . 14 29 . . . 7 . . 4 . . 38 . Melee 450 | . . . 56 . . . 161 100 . 45 . . . . . 29 20 . . . . . . . 39 . Knockbacks 37 | . 2 . 7 . . . . . . 1 . . 1 . . . . . . . . . . 1 15 10 Impact 5 | . . . 1 . . . . . . 1 . . 1 . . . . . . . . . . 1 1 . Kinetic 32 | . 2 . 6 . . . . . . . . . . . . . . . . . . . . . 14 10 Secondary . | . . . . . . . . . . . . . . . . . . . . . . . . . . . Self-Inflicted Damage 374 | . . . . 59 . 48 14 47 . . . . . . . . . 13 . . . 18 . . 83 92 Shots 10 | . . . . 2 . 1 1 2 . . . . . . . . . 1 . . . 1 . . 1 1 Rammed 18 | . . . 2 . . 2 . . . . . . 1 1 . 1 6 . . . . . . 1 4 . Targets Rammed 23 | . . . 3 . . 3 . . . . . . 1 1 . 2 7 . . . . . . 1 5 . Kicked . | . . . . . . . . . . . . . . . . . . . . . . . . . . . Crushed 5 | . . . 1 . . 1 . . . . . . . . . 1 1 . . . . . . . 1 . Highest Temperature 398 | . 129 . 304 253 196 227 5 7 4 . . 3 278 359 192 351 290 290 348 198 313 356 183 157 398 260 Average Temperature 80 | . 48 . 78 81 98 92 5 3 4 . . 3 82 80 73 86 78 81 91 97 95 81 80 64 84 150 Received Heat Transfer 2571 | . 84 . 255 54 . 108 378 396 81 . . 45 270 251 . 163 13 160 87 8 . 61 36 4 112 5 Effects 18 | . . . 2 . . 1 . . . . . . 4 2 . . 3 . . . . 4 . . 2 . Energy Bleed 4 | . . . . . . 1 . . . . . . 1 . . . . . . . . . . . 2 . Interference 14 | . . . 2 . . . . . . . . . 3 2 . . 3 . . . . 4 . . . . Siege Activations 34 | . . . . . . . . . . . . . . 3 1 2 2 4 2 . 2 10 4 . 2 2 Total Turns 411 | . . . . . . . . . . . . . . 17 3 38 29 52 30 . 26 94 39 . 20 63 Longest Duration 36 | . . . . . . . . . . . . . . 8 3 33 20 19 25 . 16 25 21 . 16 36 Martial Activations . | . . . . . . . . . . . . . . . . . . . . . . . . . . . Shielding Activations . | . . . . . . . . . . . . . . . . . . . . . . . . . . . Robots Disrupted 2 | . . . . . . 1 . . . . . . . . . . . . . . . . 1 . . . Combat Hostiles 2 | . . . . . . 1 . . . . . . . . . . . . . . . . 1 . . . Robots Corrupted 63 | . . . 1 . . . 2 2 . . . . 3 13 1 1 2 2 8 2 1 15 6 . 4 . Combat Hostiles 58 | . . . . . . . 1 2 . . . . 3 13 1 1 2 2 8 2 1 13 6 . 3 . Parts Fried 133 | . . . 4 1 . 5 4 2 . 2 . . 4 20 2 . 9 6 14 3 11 31 13 . 2 . Impact Corruptions 12 | . . . 2 . . . 3 3 . 1 . . . . . 1 1 . . . . . . . 1 . Robots Melted 18 | . . . 1 . . . . . . . . . 2 1 . 1 1 . . 1 4 3 1 . 3 . Combat Hostiles 17 | . . . 1 . . . . . . . . . 2 1 . 1 1 . . . 4 3 1 . 3 . Parts Melted 109 | . . . 7 . . . 1 . . . . . 18 2 . 10 7 3 12 3 13 18 2 1 12 . Heat Transferred 27543 | 25 851 . 1406 200 . 200 350 . . . 111 390 5453 444 240 2701 1887 1591 814 259 1375 2676 224 656 4411 1279 Parts Sabotaged . | . . . . . . . . . . . . . . . . . . . . . . . . . . . Parts Stolen . | . . . . . . . . . . . . . . . . . . . . . . . . . . . Parts Stripped . | . . . . . . . . . . . . . . . . . . . . . . . . . . . Power Chain Reactions 10 | . . . . 2 . 3 4 . . . . . . . . . . . . . . . 1 . . . Alert | -11 -10 -10 -9 -9 -9 -8 -8 -8 -8 -7 -6 -5 -4 -4 -3 -3 -3 -3 -3 -2 -2 -2 -2 -1 -1 -1 ------- Run | Yrd Mat Min Mat Min Exi Min Mat Gar Mat Fac Fac Fac Fac Gar Res Gar Res Qua Gar Res Tes Sec Gar Acc Com Ac0 Maximum Alert Level 4 | . . . 2 1 . . 1 4 2 . . . 2 4 3 4 2 1 4 2 1 3 4 3 4 . Low Security (%) 39 | 100 100 100 46 57 . 100 74 1 . 100 100 100 56 . . . . 88 7 . 70 21 . . 23 . Level 1 19 | . . . 49 42 . . 25 26 45 . . . 6 4 . 4 59 11 26 83 29 25 . . 11 . Level 2 15 | . . . 4 . . . . 30 54 . . . 36 17 88 39 40 . 12 16 . 39 . . 3 . Level 3 14 | . . . . . . . . 22 . . . . . 37 11 51 . . 46 . . 12 23 100 17 . Level 4 11 | . . . . . . . . 18 . . . . . 40 . 3 . . 7 . . . 76 . 44 . Level 5 . | . . . . . . . . . . . . . . . . . . . . . . . . . . . High Security . | . . . . . . . . . . . . . . . . . . . . . . . . . . . Max Security . | . . . . . . . . . . . . . . . . . . . . . . . . . . . Peak Influence 1509 | 5 95 62 408 303 . 101 304 1255 611 152 30 66 660 1406 790 1204 677 270 1191 669 350 1008 1509 994 813 . Initial 904 | . . 35 . 156 . . . 82 611 152 . . . 331 790 377 677 270 147 669 191 185 751 904 487 . Average 374 | . 32 7 180 163 . 14 163 673 430 40 3 11 234 933 582 769 392 117 667 363 120 443 1224 837 300 . Influence Increases 16960 | 5 533 91 1045 237 . 183 657 1213 406 49 77 153 1093 1165 135 1067 776 828 1184 189 918 1591 838 332 2032 163 Destroy 0b10 Robot/C 8220 | . 300 60 580 200 . 120 400 560 160 . 20 80 720 500 40 340 360 480 560 100 380 920 380 120 840 . Destroy 0b10 Robot/NC 395 | 5 30 . 85 . . 15 40 . 5 10 . . 15 . 5 15 35 5 . 5 35 35 . . 55 . Destroy Leader 1394 | . 66 10 156 30 . 20 78 10 42 . 10 20 174 30 12 20 70 52 60 40 72 188 50 30 154 . Allied During Kill 924 | . . 6 5 . . . . 108 44 . . 6 21 89 4 23 53 19 33 18 22 60 82 104 227 . Successful Hack 510 | . 41 . 26 . . . 6 7 5 24 16 . 28 12 32 7 24 2 . 5 112 46 48 21 48 . Select Force Hacks 150 | . 60 . . . . . 30 . . . 30 30 . . . . . . . . . . . . . . Disable Machine 720 | . 30 15 60 . . . 60 . . 15 . . 15 60 . . 15 135 . . 105 135 . . 60 15 Anti-Garrison Action 2150 | . . . . . . . . 450 150 . . . . 400 . 550 . . 400 . . . 200 . . . Destroy Structure 1897 | . 6 . 13 7 . 13 28 78 . . 1 2 90 74 42 82 84 30 71 21 147 207 78 42 633 148 Partial Spotted 30 | . . . 15 . . . . . . . . . . . . . 15 . . . . . . . . . Lose Combat Pursuer 570 | . . . 105 . . 15 15 . . . . 15 30 . . 30 120 105 60 . 45 . . 15 15 . Influence Decreases 16847 | 5 441 183 645 626 11 183 530 85 1325 385 77 153 620 232 1038 366 1499 1113 189 1039 929 919 331 1079 1652 1192 Entered New Map 5946 | . . 57 . 244 11 . . 45 644 184 . . . 142 616 126 527 211 49 522 150 145 251 605 275 1142 Time Decay 7164 | 5 441 103 572 362 . 183 490 . 246 181 77 133 350 . 302 . 672 598 . 222 582 684 . 334 627 . Lost Part 421 | . . . 30 20 . . 30 . . . . . 60 10 . 40 30 20 20 . 11 20 . . 100 30 Lost Ally 1857 | . . 23 20 . . . 10 40 160 20 . 20 60 80 120 200 270 148 120 20 36 70 80 140 200 20 Purge Threat 1459 | . . . 23 . . . . . 275 . . . 150 . . . . 136 . 275 150 . . . 450 . Squads Dispatched 112 | . 6 . 3 . . . 4 . 10 2 6 6 13 . 2 . 8 10 . 3 6 18 . 5 10 . Investigation 13 | . 4 . 1 . . . 1 . 2 . 1 1 1 . . . . 2 . . . . . . . . Extermination 44 | . . . . . . . . . . 1 2 1 3 . 2 . 6 5 . 2 5 8 . 2 7 . Reinforcement 32 | . 2 . 2 . . . 3 . 3 1 1 1 5 . . . 2 3 . 1 1 3 . 3 1 . Assault 10 | . . . . . . . . . 2 . . 2 3 . . . . . . . . 1 . . 2 . Garrison 13 | . . . . . . . . . 3 . 2 1 1 . . . . . . . . 6 . . . . Intercept . | . . . . . . . . . . . . . . . . . . . . . . . . . . . Searches Triggered . | . . . . . . . . . . . . . . . . . . . . . . . . . . . Unchained Authorized 1 | . . . . . . . . . . . . . . . . . . . . . . . . 1 . . Construction Impeded 2 | . . . . . . . 1 . . . . . . . . . . 1 . . . . . . . . Haulers Reinforced 3 | . . . . . . . . . . . . 1 . . . . . . . 1 . . . 1 . . Active Scanning Responses . | . . . . . . . . . . . . . . . . . . . . . . . . . . . Cargo Convoy Interrupts 1 | . . . . . . . . . . . . . 1 . . . . . . . . . . . . . Alert ID Control Effect 79 | . . . . . . . . 1 7 . . . 1 6 1 7 20 9 3 . 1 . 7 10 6 . Stealth | -11 -10 -10 -9 -9 -9 -8 -8 -8 -8 -7 -6 -5 -4 -4 -3 -3 -3 -3 -3 -2 -2 -2 -2 -1 -1 -1 --------- Run | Yrd Mat Min Mat Min Exi Min Mat Gar Mat Fac Fac Fac Fac Gar Res Gar Res Qua Gar Res Tes Sec Gar Acc Com Ac0 Distress Signals 37 | . 2 . . . . . 2 . 1 1 1 2 3 . . . 1 . . . 1 3 . . 20 . Communications Jammed 173 | . . . . . . . . . . . . . 28 . . . 54 5 . 1 1 29 . 15 40 . Distress Signals 159 | . . . . . . . . . . . . . 18 . . . 54 2 . 1 1 28 . 15 40 . Times Spotted 703 | . 20 2 46 10 . 7 34 32 15 5 6 13 49 39 4 40 48 53 43 12 28 65 29 19 69 15 Peak Tracking Total 8 | . 4 3 6 4 . 3 8 5 3 3 2 4 5 4 1 3 7 5 5 3 4 6 3 4 4 4 Tactical Retreats 30 | . . . 5 . . 1 1 . . . . 1 1 . . 1 6 5 4 . 3 . . 1 1 . Traps | -11 -10 -10 -9 -9 -9 -8 -8 -8 -8 -7 -6 -5 -4 -4 -3 -3 -3 -3 -3 -2 -2 -2 -2 -1 -1 -1 ------- Run | Yrd Mat Min Mat Min Exi Min Mat Gar Mat Fac Fac Fac Fac Gar Res Gar Res Qua Gar Res Tes Sec Gar Acc Com Ac0 Traps Triggered 27 | . 2 . 2 . . . 1 1 . . . 1 . 4 1 4 4 . 1 . . 3 1 1 1 . Indirectly 1 | . . . . . . . . . . . . . . . . . 1 . . . . . . . . . Trap Hack Attempts 8 | . . . . . . . . 8 . . . . . . . . . . . . . . . . . . Triggered . | . . . . . . . . . . . . . . . . . . . . . . . . . . . Disarmed . | . . . . . . . . . . . . . . . . . . . . . . . . . . . Reprogrammed . | . . . . . . . . . . . . . . . . . . . . . . . . . . . Reused . | . . . . . . . . . . . . . . . . . . . . . . . . . . . Traps Extracted . | . . . . . . . . . . . . . . . . . . . . . . . . . . . Installed . | . . . . . . . . . . . . . . . . . . . . . . . . . . . Triggered . | . . . . . . . . . . . . . . . . . . . . . . . . . . . Machines | -11 -10 -10 -9 -9 -9 -8 -8 -8 -8 -7 -6 -5 -4 -4 -3 -3 -3 -3 -3 -2 -2 -2 -2 -1 -1 -1 ---------- Run | Yrd Mat Min Mat Min Exi Min Mat Gar Mat Fac Fac Fac Fac Gar Res Gar Res Qua Gar Res Tes Sec Gar Acc Com Ac0 Machines Disabled 75 | . 2 1 4 . . . 4 5 1 1 . . 1 9 . 5 2 9 4 . 7 11 4 . 4 1 Max in Single Turn 1 | . 1 . 1 . . . 1 1 . 1 . . 1 1 . 1 1 1 1 . 1 1 1 . 1 1 Garrison Access 7 | . . . . . . . . . 1 . . 1 1 . . . 2 . . . 1 . . 1 . . Garrison Relay 22 | . . . . . . . . 5 . . . . . 4 . 5 . . 4 . . . 4 . . . Machines Repaired . | . . . . . . . . . . . . . . . . . . . . . . . . . . . Machines Dismantled . | . . . . . . . . . . . . . . . . . . . . . . . . . . . Machines Sabotaged . | . . . . . . . . . . . . . . . . . . . . . . . . . . . Overloaded Fab Kills . | . . . . . . . . . . . . . . . . . . . . . . . . . . . Hacking | -11 -10 -10 -9 -9 -9 -8 -8 -8 -8 -7 -6 -5 -4 -4 -3 -3 -3 -3 -3 -2 -2 -2 -2 -1 -1 -1 --------- Run | Yrd Mat Min Mat Min Exi Min Mat Gar Mat Fac Fac Fac Fac Gar Res Gar Res Qua Gar Res Tes Sec Gar Acc Com Ac0 Machines Accessed 115 | . 8 2 13 . 2 . 5 2 2 2 4 2 6 1 5 2 12 7 1 1 13 12 3 6 4 . Terminals 72 | . 6 1 10 . . . 2 2 1 . 2 1 3 1 3 2 6 4 1 . 8 9 3 4 3 . Fabricators 6 | . . . . . . . . . . 1 1 . 1 . . . . . . 1 1 . . 1 . . Repair Stations 8 | . . . 1 . . . 1 . . . . . . . 1 . 2 1 . . 1 . . . 1 . Recycling Units 3 | . 2 . . . . . 1 . . . . . . . . . . . . . . . . . . . Scanalyzers 11 | . . . 2 . . . . . . 1 . . 1 . . . 2 1 . . 2 2 . . . . Garrison Access 12 | . . . . . . . 1 . 1 . 1 1 1 . 1 . 2 1 . . 1 1 . 1 . . Total Hacks 285 | . 24 2 49 . 3 . 13 4 8 5 11 7 16 2 13 4 24 18 2 4 26 26 4 11 9 . Successful 145 | . 15 1 27 . 3 . 11 2 4 2 6 2 11 1 7 1 8 6 . 2 15 10 3 5 3 . Failed 136 | . 9 1 21 . . . 2 2 4 3 5 5 4 1 6 3 16 11 2 2 10 16 1 6 6 . Catastrophic 22 | . 1 1 . . . . . 1 1 . . 1 . 1 . 1 5 4 . . 1 3 . 1 1 . Database Lockouts 4 | . . . 1 . . . . . . . . . 1 . . . . 1 . . 1 . . . . . Manual 125 | . 20 1 21 . 1 . 4 . 5 1 6 6 5 1 5 . 9 9 . 1 17 8 1 . 4 . Terminals 182 | . 22 1 33 . . . 5 4 6 . 4 3 7 2 9 4 14 10 2 . 16 21 4 7 8 . Fabricators 20 | . . . . . . . . . . 1 6 . 5 . . . . . . 4 2 . . 2 . . Repair Stations 14 | . . . 2 . . . 6 . . . . . . . 1 . 2 1 . . 1 . . . 1 . Recycling Units 3 | . 2 . . . . . 1 . . . . . . . . . . . . . . . . . . . Scanalyzers 39 | . . . 14 . . . . . . 4 . . 2 . . . 4 6 . . 5 4 . . . . Garrison Access 23 | . . . . . . . 1 . 2 . 1 4 2 . 3 . 4 1 . . 2 1 . 2 . . Terminal Hacks 43 | . 4 1 4 . 3 . 1 2 1 . 1 . 4 1 2 1 2 . . . 2 7 2 3 2 . Record 2 | . . . . . 2 . . . . . . . . . . . . . . . . . . . . . Robot Analysis 1 | . 1 . . . . . . . . . . . . . . . . . . . . . . . . . Prototype ID Bank 3 | . 1 . 2 . . . . . . . . . . . . . . . . . . . . . . . Open Door 12 | . . 1 . . . . . 1 . . . . . . . 1 . . . . . 5 . 3 1 . Branch Access Points 1 | . . . . . . . . . . . . . . . . . 1 . . . . . . . . . Emergency Access Points 2 | . . . . . . . . 1 . . . . . 1 . . . . . . . . . . . . Terminal Index 1 | . . . . . . . . . . . . . . . . . . . . . . . . . 1 . Unreport Threat 3 | . . . 1 . . . . . . . . . 1 . . . . . . . 1 . . . . . Locate Traps 9 | . 2 . 1 . . . . . . . 1 . 2 . . . 1 . . . 1 1 . . . . Recall Extermination 1 | . . . . . . . . . . . . . . . 1 . . . . . . . . . . . Zone Layout 5 | . . . . . . . 1 . 1 . . . 1 . 1 . . . . . . 1 . . . . Patrol Navigation 1 | . . . . . . . . . . . . . . . . . . . . . . . 1 . . . Security Stations 1 | . . . . . . . . . . . . . . . . . . . . . . . 1 . . . Proto ID Catalog 1 | . . . . . 1 . . . . . . . . . . . . . . . . . . . . . Fabricator Hacks 4 | . . . . . . . . . . . 2 . 1 . . . . . . 1 . . . . . . Network Status 2 | . . . . . . . . . . . 1 . 1 . . . . . . . . . . . . . Build 2 | . . . . . . . . . . . 1 . . . . . . . . 1 . . . . . . Repair Station Hacks 7 | . . . 2 . . . 5 . . . . . . . . . . . . . . . . . . . Scan Component 4 | . . . 1 . . . 3 . . . . . . . . . . . . . . . . . . . Repair 3 | . . . 1 . . . 2 . . . . . . . . . . . . . . . . . . . Recycling Unit Hacks . | . . . . . . . . . . . . . . . . . . . . . . . . . . . Scanalyzer 22 | . . . 12 . . . . . . 2 . . 1 . . . 1 3 . . 2 1 . . . . Insert Component 5 | . . . 4 . . . . . . . . . . . . . . . . . . 1 . . . . Analyze 4 | . . . 4 . . . . . . . . . . . . . . . . . . . . . . . Retrieve Study 13 | . . . 4 . . . . . . 2 . . 1 . . . 1 3 . . 2 . . . . . Garrison Access Hacks 18 | . . . . . . . 1 . 2 . . 1 2 . 2 . 4 1 . . 2 1 . 2 . . Unlock Access 6 | . . . . . . . 1 . 1 . . . 1 . 1 . . 1 . . . 1 . . . . Seal Access 4 | . . . . . . . . . . . . . . . . . 2 . . . 1 . . 1 . . Coupler Status 8 | . . . . . . . . . 1 . . 1 1 . 1 . 2 . . . 1 . . 1 . . Unauthorized Hacks 51 | . 11 . 9 . . . 4 . 1 . 3 1 3 . 3 . 1 2 . 1 9 1 1 . 1 . Terminals 37 | . 9 . 9 . . . 3 . 1 . . . 1 . 2 . 1 1 . . 7 1 1 . 1 . Track 5 | . . . . . . . . . . . . . . . . . . . . . 4 . . . 1 . Assimilate 3 | . . . 1 . . . 2 . . . . . . . . . . . . . . . . . . . Botnet 12 | . 2 . 1 . . . 1 . 1 . . . 1 . 1 . . 1 . . 2 1 1 . . . Operators 5 | . 1 . 1 . . . . . . . . . . . 1 . 1 . . . 1 . . . . . Skim 12 | . 6 . 6 . . . . . . . . . . . . . . . . . . . . . . . Fabricators 6 | . . . . . . . . . . . 2 . 2 . . . . . . 1 1 . . . . . Report 1 | . . . . . . . . . . . . . 1 . . . . . . . . . . . . . Liberate 3 | . . . . . . . . . . . 1 . 1 . . . . . . . 1 . . . . . Haulers 2 | . . . . . . . . . . . 1 . . . . . . . . 1 . . . . . . Repair Stations 1 | . . . . . . . . . . . . . . . 1 . . . . . . . . . . . Mechanics 1 | . . . . . . . . . . . . . . . 1 . . . . . . . . . . . Recycling Units 3 | . 2 . . . . . 1 . . . . . . . . . . . . . . . . . . . Tunnel 3 | . 2 . . . . . 1 . . . . . . . . . . . . . . . . . . . Scanalyzers 2 | . . . . . . . . . . . . . . . . . . 1 . . 1 . . . . . Researchers 2 | . . . . . . . . . . . . . . . . . . 1 . . 1 . . . . . Garrison Access 2 | . . . . . . . . . . . 1 1 . . . . . . . . . . . . . . Eject 2 | . . . . . . . . . . . 1 1 . . . . . . . . . . . . . . Data Cores Recovered 1 | . . . . . . . . . . . . . . . . . . . . . . . . . 1 . Used . | . . . . . . . . . . . . . . . . . . . . . . . . . . . Hacking Detections 91 | . 6 1 12 . . . 3 1 1 2 3 1 6 1 5 1 10 6 1 1 11 9 3 4 3 . Full Trace Events 4 | . . . 1 . . . . . 1 . . . . . . . . 2 . . . . . . . . Feedback Events . | . . . . . . . . . . . . . . . . . . . . . . . . . . . Feedback Blocked . | . . . . . . . . . . . . . . . . . . . . . . . . . . . Robot Schematics Acquired 2 | . . . . . . . . . . . . . . . . . . 1 . . . 1 . . . . Robots Built . | . . . . . . . . . . . . . . . . . . . . . . . . . . . Authchips . | . . . . . . . . . . . . . . . . . . . . . . . . . . . Time . | . . . . . . . . . . . . . . . . . . . . . . . . . . . Total Robot Build Rating . | . . . . . . . . . . . . . . . . . . . . . . . . . . . Part Schematics Acquired 17 | . . . 3 . . . . . . . . . . . . . . 4 . . 4 6 . . . . Parts Built 3 | . . . . . . . . . . . 2 . . . . . . . . 1 . . . . . . Authchips . | . . . . . . . . . . . . . . . . . . . . . . . . . . . Time 234 | . . . . . . . . . . . 95 . . . . . . . . 139 . . . . . . Total Part Build Rating 19 | . . . . . . . . . . . 10 . . . . . . . . 9 . . . . . . Part Studies Acquired 11 | . . . 3 . . . . . . 2 . . 1 . . . 1 2 . . 2 . . . . . Parts Repaired 3 | . . . 1 . . . 2 . . . . . . . . . . . . . . . . . . . Time 188 | . . . 136 . . . 52 . . . . . . . . . . . . . . . . . . . Parts Recycled . | . . . . . . . . . . . . . . . . . . . . . . . . . . . Recycled Matter . | . . . . . . . . . . . . . . . . . . . . . . . . . . . Retrieved Matter . | . . . . . . . . . . . . . . . . . . . . . . . . . . . Retrieved Components . | . . . . . . . . . . . . . . . . . . . . . . . . . . . Parts Scanalyzed 3 | . . . 3 . . . . . . . . . . . . . . . . . . . . . . . Part Schematics Acquired 3 | . . . 3 . . . . . . . . . . . . . . . . . . . . . . . Parts Damaged 1 | . . . 1 . . . . . . . . . . . . . . . . . . . . . . . Bothacking | -11 -10 -10 -9 -9 -9 -8 -8 -8 -8 -7 -6 -5 -4 -4 -3 -3 -3 -3 -3 -2 -2 -2 -2 -1 -1 -1 ------------ Run | Yrd Mat Min Mat Min Exi Min Mat Gar Mat Fac Fac Fac Fac Gar Res Gar Res Qua Gar Res Tes Sec Gar Acc Com Ac0 Used RIF Installer 6 | . . . . . . . . 2 . . . . . 1 . 1 . . 1 . . . 1 . . . Command Fork 2 | . . . . . . . . . . . . . . 1 . . . . . . . . 1 . . . Robot Detection 1 | . . . . . . . . . . . . . . . . . . . 1 . . . . . . . Patrol Navigation 1 | . . . . . . . . . . . . . . . . 1 . . . . . . . . . . Alert ID Control 1 | . . . . . . . . 1 . . . . . . . . . . . . . . . . . . Robots Hacked 188 | . . . . . . . . 10 2 3 4 5 16 10 1 19 15 20 16 5 15 14 8 9 16 . Non-combat 53 | . . . . . . . . . 1 2 3 1 8 1 . . 6 7 . 2 4 7 . 3 8 . Combat 135 | . . . . . . . . 10 1 1 1 4 8 9 1 19 9 13 16 3 11 7 8 6 8 . Robot Hacks Applied 229 | . . . . . . . . 11 5 3 4 5 21 11 1 19 19 33 17 7 15 17 9 10 22 . parse_system 14 | . . . . . . . . 1 . 1 . . . 1 . . 1 1 1 1 3 2 1 . 1 . find_chute 2 | . . . . . . . . . . 1 1 . . . . . . . . . . . . . . . ignore_repairs 12 | . . . . . . . . . . 1 . . . . . . 4 2 . . 1 4 . . . . find_fabricator 2 | . . . . . . . . . . . . . . . . . 2 . . . . . . . . . drop_inventory 7 | . . . . . . . . . . . 1 . 2 . . . 2 1 . . . . . 1 . . recall_reinforcements 1 | . . . . . . . . . . . . . . . . . . . . . . . . 1 . . ignore_parts 12 | . . . . . . . . . . . . . 7 . . . . 1 . . 1 1 . 1 1 . check_alert 1 | . . . . . . . . . 1 . . . . . . . . . . . . . . . . . purge_threat 9 | . . . . . . . . . 2 . . . . . . . . 1 . 2 . . . . 4 . locate_traps 1 | . . . . . . . . . . . . . . . . . . . . . . . . . 1 . block_reporting 3 | . . . . . . . . . . . . . . . . . . . . 1 . 1 . . 1 . clear_recycling 1 | . . . . . . . . . . . . . . . . . . 1 . . . . . . . . map_route 6 | . . . . . . . . . . . . . . . . . 1 1 . 1 . . . 1 2 . disable_scanner 7 | . . . . . . . . . . . . . . . . . . 1 . . 4 2 . . . . report_analyses 7 | . . . . . . . . . . . . . . . . . . 7 . . . . . . . . find_garrison 2 | . . . . . . . . . . . . . 2 . . . . . . . . . . . . . focus_fire 1 | . . . . . . . . . . . . . . . . . . . . . . . . 1 . . reboot_propulsion 1 | . . . . . . . . . . . . . . . . . . . . . . 1 . . . . scatter_targeting 2 | . . . . . . . . . . . . . . . . . . . . . . 1 . . 1 . spike_heat 6 | . . . . . . . . . . . . 1 . . . . . 1 3 . . 1 . . . . overload_power 1 | . . . . . . . . . . . . . . . . . . 1 . . . . . . . . amplify_resonance 11 | . . . . . . . . . . . . . 4 1 . 2 . 2 1 . 1 . . . . . wipe_record 1 | . . . . . . . . . . . . . 1 . . . . . . . . . . . . . reboot_system 12 | . . . . . . . . 2 . . . 1 2 . . . 1 1 1 . 2 . . 1 1 . overwrite_iff 33 | . . . . . . . . . . . . 1 2 2 . 8 1 3 6 2 1 . 1 3 3 . formatsys_low 15 | . . . . . . . . . 1 . 1 1 . 1 . . . 3 . . 2 3 . . 3 . formatsys_high 59 | . . . . . . . . 8 1 . 1 1 1 6 1 9 7 6 5 . . 1 7 1 4 . Relay Couplers Released 110 | . . . . . . . . 23 1 . 3 6 2 16 . 17 5 . 17 . 3 . 15 2 . . Ejected 6 | . . . . . . . . . . . 3 3 . . . . . . . . . . . . . . Machine Destruction 94 | . . . . . . . . 19 1 . . . 2 16 . 17 2 . 17 . 3 . 15 2 . . Programmers 10 | . . . . . . . . 4 . . . 3 . . . . 3 . . . . . . . . . Attached 69 | . . . . . . . . 6 2 . 1 3 2 6 . 10 6 4 5 3 3 1 10 1 6 . Fabnet Peak Effective % . | . . . . . . . . . . . . . . . . . . . . . . . . . . . Robots Rewired 9 | . . . . . . . . 3 . 1 . . . 3 . . . . . . 1 . 1 . . . Allies Hacked 10 | . . . . . . . . 1 . . . . . . . 1 1 1 . . . 1 1 . 4 . Hacks Repelled . | . . . . . . . . . . . . . . . . . . . . . . . . . . . Allies | -11 -10 -10 -9 -9 -9 -8 -8 -8 -8 -7 -6 -5 -4 -4 -3 -3 -3 -3 -3 -2 -2 -2 -2 -1 -1 -1 -------- Run | Yrd Mat Min Mat Min Exi Min Mat Gar Mat Fac Fac Fac Fac Gar Res Gar Res Qua Gar Res Tes Sec Gar Acc Com Ac0 Total Allies 134 | . . 3 . . . . 1 11 2 1 2 3 3 12 1 20 9 12 12 2 4 4 13 6 13 . Largest Group 9 | . . 3 1 . . . 1 9 9 1 1 2 2 9 6 8 8 6 3 2 2 2 9 9 7 . Highest-Rated Group 509 | . . 40 16 . . . 10 180 180 12 32 72 98 420 280 434 434 253 120 133 124 98 509 509 346 . Highest-Rated Ally 216 | . . 16 16 . . . 10 31 31 12 32 49 49 56 64 64 64 64 64 69 124 69 64 64 216 . Total Orders 173 | . . . 4 . . . 1 20 2 . 1 3 14 21 9 10 4 6 7 6 7 11 5 4 34 4 STAY 82 | . . . 3 . . . 1 11 1 . . . 2 10 3 7 2 2 5 3 5 5 2 2 18 . ROAM 2 | . . . . . . . . . . . . . . 1 . . . . . . . 1 . . . . FOLLOW 54 | . . . 1 . . . . 9 1 . . . 2 7 2 3 2 3 2 3 1 4 3 2 8 1 AID 19 | . . . . . . . . . . . 1 3 . 3 1 . . 1 . . 1 1 . . 8 . EXPLORE 16 | . . . . . . . . . . . . . 10 . 3 . . . . . . . . . . 3 Ally Attacks 754 | . . 15 . . . . . 58 61 8 . 8 13 41 24 38 100 68 62 9 19 23 41 78 88 . Total Damage 21996 | . . 73 . . . . . 1125 1061 41 . 306 316 1395 600 1097 2836 2131 1504 387 885 397 1247 2306 4289 . Kills 125 | . . 3 . . . . . 9 13 . . 2 2 7 2 7 20 9 4 . 6 2 11 13 15 . Allies Corrupted 11 | . . . . . . . . . . . . . . . . . 1 2 . . 2 . . . 6 . Allies Melted 2 | . . . . . . . . 1 . . . . . 1 . . . . . . . . . . . . Intel | -11 -10 -10 -9 -9 -9 -8 -8 -8 -8 -7 -6 -5 -4 -4 -3 -3 -3 -3 -3 -2 -2 -2 -2 -1 -1 -1 ------- Run | Yrd Mat Min Mat Min Exi Min Mat Gar Mat Fac Fac Fac Fac Gar Res Gar Res Qua Gar Res Tes Sec Gar Acc Com Ac0 Active Infowar (turns) 27945 | 53 1615 168 265 37 . . . . . 612 678 595 1986 1275 673 2128 2582 2023 1902 467 2074 2723 1046 747 4296 . Optics 4827 | . . . . . . . . . . . . . . . . . . . . . . . 543 747 3537 . Sensors 11044 | . . . . 36 . . . . . 612 678 595 1460 1 618 . 1547 1483 58 435 1227 1898 . 396 . . Terrain 1 | . . . . 1 . . . . . . . . . . . . . . . . . . . . . . Seismic 2103 | 53 1615 168 265 . . . . . . . . . . . . . 2 . . . . . . . . . Jamming 23247 | . . . . . . . . . . . . . 1311 1275 673 2128 2582 2023 1902 467 2074 2723 1046 747 4296 . ECM 2 | . . . . . . . . . . . . . 1 . . . 1 . . . . . . . . . Robot Analysis Total 1 | . 1 . . . . . . . . . . . . . . . . . . . . . . . . . Derelict Logs Recovered 4 | . . 3 . 1 . . . . . . . . . . . . . . . . . . . . . . Drone Launches 13 | . . . . . . . . . . . . . 9 . 2 . . . . . . . . . . 2 Drone Recoveries 7 | . . . . . . . . . . . . . 7 . . . . . . . . . . . . . Exploration | -11 -10 -10 -9 -9 -9 -8 -8 -8 -8 -7 -6 -5 -4 -4 -3 -3 -3 -3 -3 -2 -2 -2 -2 -1 -1 -1 ------------- Run | Yrd Mat Min Mat Min Exi Min Mat Gar Mat Fac Fac Fac Fac Gar Res Gar Res Qua Gar Res Tes Sec Gar Acc Com Ac0 Turns Passed 40696 | 115 1796 1130 2631 827 627 1541 1398 2046 538 615 678 606 2004 2029 673 2128 2606 2023 1941 467 2074 2723 1046 747 5249 438 Spaces Moved 21054 | 59 871 683 1284 445 258 599 608 1085 290 362 376 337 951 1079 367 1126 1242 1064 973 253 1121 1391 496 439 3066 229 Core 15 | 15 . . . . . . . . . . . . . . . . . . . . . . . . . . Treads 21039 | 44 871 683 1284 445 258 599 608 1085 290 362 376 337 951 1079 367 1126 1242 1064 973 253 1121 1391 496 439 3066 229 Legs . | . . . . . . . . . . . . . . . . . . . . . . . . . . . Wheels . | . . . . . . . . . . . . . . . . . . . . . . . . . . . Hover . | . . . . . . . . . . . . . . . . . . . . . . . . . . . Flight . | . . . . . . . . . . . . . . . . . . . . . . . . . . . Fastest Speed 50 | 50 160 160 160 160 240 240 160 160 160 160 160 162 150 155 158 155 155 155 155 155 150 155 155 155 141 142 Average Speed 160 | 137 160 160 160 160 240 240 167 160 160 160 160 162 162 155 160 158 155 157 161 155 155 155 155 155 151 142 Slowest Speed 245 | 160 160 160 160 160 240 240 240 160 160 160 162 162 218 158 161 161 155 158 245 155 237 155 155 155 238 142 Overloaded Moves . | . . . . . . . . . . . . . . . . . . . . . . . . . . . Propulsion Burnouts . | . . . . . . . . . . . . . . . . . . . . . . . . . . . Robots Hopped . | . . . . . . . . . . . . . . . . . . . . . . . . . . . Potential Cave-ins . | . . . . . . . . . . . . . . . . . . . . . . . . . . . Cave-ins Triggered . | . . . . . . . . . . . . . . . . . . . . . . . . . . . Teleports 5 | . . . . . . . . . . . . . . . . . . 1 . . . 2 . . 1 1 Exploration Rate (%) 52 | 4 94 98 77 75 69 99 38 61 27 12 17 12 23 86 16 81 37 83 62 5 88 76 86 14 70 15 Regions Visited 26 Branch Regions 9 Pre-discovered Areas 9 | . 3 1 1 2 1 . 1 . . . . . . . . . . . . . . . . . . . Known Exits Taken 14 | . . 1 . . . 1 1 . 1 1 1 1 1 . 1 . 1 1 . 1 1 1 . . . . Unknown Exits Taken 7 | 1 1 . 1 1 1 . . . . . . . . . . . . . . . . . . 1 1 . Scrap Searched 5 | . . 2 . 2 . 1 . . . . . . . . . . . . . . . . . . . . Spaces Dug 270 | . 7 . 10 . . . 15 20 . . . . 29 16 10 18 38 7 8 4 33 39 6 4 6 . Terrain Destroyed 611 | . 7 . 10 9 . 15 26 71 . . 1 1 48 17 25 32 48 18 13 7 44 60 23 12 96 28 Melee 29 | . . . 8 . . . 11 10 . . . . . . . . . . . . . . . . . . Projectile 375 | . 7 . 2 . . . . . . . 1 1 48 17 10 32 48 18 13 7 39 60 9 12 31 20 AOE 207 | . . . . 9 . 15 15 61 . . . . . . 15 . . . . . 5 . 14 . 65 8 Terrain Rammed . | . . . . . . . . . . . . . . . . . . . . . . . . . . . Walls Destroyed . | . . . . . . . . . . . . . . . . . . . . . . . . . . . Machines Disabled . | . . . . . . . . . . . . . . . . . . . . . . . . . . . Actions | -11 -10 -10 -9 -9 -9 -8 -8 -8 -8 -7 -6 -5 -4 -4 -3 -3 -3 -3 -3 -2 -2 -2 -2 -1 -1 -1 --------- Run | Yrd Mat Min Mat Min Exi Min Mat Gar Mat Fac Fac Fac Fac Gar Res Gar Res Qua Gar Res Tes Sec Gar Acc Com Ac0 Total 26976 | 86 1155 721 1608 536 269 665 874 1300 335 391 449 389 1315 1417 451 1466 1834 1406 1348 325 1448 1949 773 506 3620 340 Wait 2008 | 10 196 30 104 63 . 32 167 71 5 1 54 14 60 126 37 90 279 76 101 20 66 132 132 7 124 11 Move 21032 | 58 870 682 1283 444 257 598 608 1084 289 361 375 336 951 1078 367 1125 1241 1064 972 252 1120 1391 495 438 3065 228 Hop . | . . . . . . . . . . . . . . . . . . . . . . . . . . . Pick Up 404 | 8 8 5 27 5 3 3 7 11 2 3 3 14 32 22 3 24 24 28 30 3 16 44 14 4 52 9 Fast Attach 147 | 7 2 . . 2 . 3 2 4 . 1 . 1 14 6 5 8 17 9 11 1 20 11 5 . 15 3 Attach 173 | . . . 6 2 2 . 5 4 2 3 3 5 14 8 4 10 8 10 8 4 3 29 6 3 26 8 Detach 74 | . 2 . . . 2 . . 1 2 2 2 . 7 1 2 2 1 3 4 1 6 14 2 . 16 4 Swap 454 | 2 13 1 46 2 1 4 17 27 9 8 4 7 58 25 3 20 44 37 21 3 27 34 8 3 25 5 Drop 402 | . 9 3 18 5 4 5 10 10 4 4 1 4 39 21 7 20 34 33 34 2 35 32 10 2 45 11 Fire 2129 | 1 55 . 105 13 . 17 39 32 15 1 4 6 139 129 22 162 176 143 165 39 155 262 98 48 242 61 Melee 96 | . . . 16 . . . 19 44 6 7 2 2 . . . . . . . . . . . . . . Ram . | . . . . . . . . . . . . . . . . . . . . . . . . . . . Kick . | . . . . . . . . . . . . . . . . . . . . . . . . . . . Crush 23 | . . . 3 . . 3 . . . . . . 1 1 . 2 7 . . . . . . 1 5 . Escape Stasis 1 | . . . . . . . . . . . . . . . . . . . . . . . 1 . . . Rewire 25 | . . . . . . . . 4 1 . 1 . . . 1 3 3 3 2 . . . 2 . 5 . Trap 8 | . . . . . . . . 8 . . . . . . . . . . . . . . . . . . Miscellaneous . | . . . . . . . . . . . . . . . . . . . . . . . . . . . Route ------- -11/Scrapyard -10/Materials (discovered 6 exits: *Mat x3 / *Min x2 / Sub) -10/Mines (discovered 2 exits: *Mat x2) -9/Materials (discovered 4 exits: *Mat x3 / [*Min]) -9/Mines -9/Exiles -8/Mines (discovered 2 exits: *Mat x2) -8/Materials (discovered 4 exits: Fac x3 / Gar) -8/Garrison -8/Materials -7/Factory (discovered 3 exits: *Fac / *Sto x2) -6/Factory -5/Factory -4/Factory (discovered 3 exits: *Res / *Upp / Gar) -4/Garrison (discovered 3 exits: *Res x3) -3/Research (discovered 2 exits: *Res / Gar) -3/Garrison (discovered 3 exits: *Res x3) -3/Research (discovered 4 exits: *Res / Arm / *Qua x2) -3/Quarantine (discovered 2 exits: *Res / Gar) -3/Garrison (discovered 2 exits: *Res x2) -2/Research (discovered 2 exits: Acc / *Tes) -2/Testing (discovered 2 exits: *Sec / [*Frg]) -2/Section 7 (discovered 2 exits: *Acc / Gar) -2/Garrison (discovered 3 exits: *Acc x3) -1/Access -1/Command (discovered 3 exits: [*Sur x2] / [*Ac0]) -1/Access_0 0b11 Command History --------- Turn | Location | Event 13 | -11/Scrapyard | Discovered new exit (range 16) 116 | -11/Scrapyard | Entered Materials 323 | -10/Materials | Build established: Mutant 544 | -10/Materials | Discovered new exit (range 7) 598 | -10/Materials | Discovered new exit (range 5) 616 | -10/Materials | Derelicts attacked the area 730 | -10/Materials | Discovered new exit (range 16) 801 | -10/Materials | Learned location of 1 exit from Storage 1581 | -10/Materials | Discovered new exit (range 16) 1642 | -10/Materials | Learned location of 1 exit from Storage 1686 | -10/Materials | Identified exit to Subcaves 1722 | -10/Materials | Learned location of Subcaves (-10) 1747 | -10/Materials | Learned location of 1 exit from Storage 1784 | -10/Materials | Learned location of 1 exit from Storage 1830 | -10/Materials | Identified exit to Materials 1912 | -10/Materials | Entered Mines 2121 | -10/Mines | Found a damaged Exp. Sensor Array with a note attached 2124 | -10/Mines | Found Prototype Device 2274 | -10/Mines | Discovered exit to Materials (range 10) 2445 | -10/Mines | Learned 2 Materials zone layouts 2456 | -10/Mines | Assisted by bots powering up and referring to "LRC-V3" 2727 | -10/Mines | Discovered exit to Materials (range 8) 2869 | -10/Mines | Learned location of Storage (-7) 2871 | -10/Mines | Found the Drone Emporium 2882 | -10/Mines | Found Prototype Device 3042 | -10/Mines | Entered Materials 3042 | -9/Materials | Accompanied by 1 ally 3042 | -9/Materials | Evolved 2 slots: Propulsion x1, Utility x1 3043 | -9/Materials | Identified exit to Materials 3423 | -9/Materials | Discovered exit to Materials (range 5) 3435 | -9/Materials | Identified Exp. Sensor Array 3541 | -9/Materials | Central database locked down 4327 | -9/Materials | Discovered new exit (range 10) 4750 | -9/Materials | Repaired Broken Exp. Sensor Array? 4928 | -9/Materials | Learned 2 Storage zone layouts 5060 | -9/Materials | Learned Recycling recycling unit intel 5113 | -9/Materials | Learned location of 3 exits from Materials 5177 | -9/Materials | Learned location of Zion (-6) 5249 | -9/Materials | Loaded intel: 19 trap records 5673 | -9/Materials | Entered Mines 5806 | -9/Mines | Received a Rocket Launcher from a helpful Derelict 5903 | -9/Mines | Assembled infested the area 6088 | -9/Mines | A weapon hastily lodged in a ceiling crevice suddenly fell to the ground 6433 | -9/Mines | Discovered new exit (range 5) 6500 | -9/Mines | Entered Exiles 6561 | -9/Exiles | Met 8R-AWN 6602 | -9/Exiles | Met EX-HEX 6691 | -9/Exiles | Met EX-DEC 6772 | -9/Exiles | Met EX-BIN 6806 | -9/Exiles | Aligned with FarCom system 6808 | -9/Exiles | Given EX-Vault access code 6863 | -9/Exiles | Opened EX-Vault 6878 | -9/Exiles | Found AWS/Autocannon 6884 | -9/Exiles | Found AWS/Thermal 6889 | -9/Exiles | Found YOLO Cannon 6938 | -9/Exiles | Warned to stay clear of 0b10 Research branches 7098 | -9/Exiles | Discovered new exit (range 14) 7127 | -9/Exiles | Stole three prototypes: AWS/Thermal, YOLO Cannon, AWS/Autocannon 7127 | -9/Exiles | Entered Mines 7314 | -8/Mines | Discovered exit to Materials (range 11) 7531 | -8/Mines | Discovered exit to Materials (range 3) 7660 | -8/Mines | Found a Scrap Suit stashed away for nefarious purposes 7720 | -8/Mines | Core integrity fell below 50% 8668 | -8/Mines | Entered Materials 8668 | -8/Materials | Evolved 2 slots: Propulsion x1, Utility x1 8669 | -8/Materials | Identified exit to Factory 8970 | -8/Materials | Destroyed 10 combat bots 9839 | -8/Materials | Repaired Lgt. Treads 9872 | -8/Materials | Repaired Lgt. Treads 10066 | -8/Materials | Identified exit to Garrison 10066 | -8/Materials | Entered Garrison 10172 | -8/Garrison | Triggered checkpoint 10272 | -8/Garrison | Triggered checkpoint 10333 | -8/Garrison | Garrison Relay disabled 10477 | -8/Garrison | Triggered checkpoint 10638 | -8/Garrison | Installed Relay Interface Framework 10990 | -8/Garrison | Garrison Relay disabled 11120 | -8/Garrison | Garrison Relay disabled 11184 | -8/Garrison | Build established: Commander-Mutant 11206 | -8/Garrison | Triggered checkpoint 11356 | -8/Garrison | Triggered checkpoint 11571 | -8/Garrison | Garrison Relay disabled 11616 | -8/Garrison | Triggered checkpoint 11622 | -8/Garrison | Garrison Relay disabled 11684 | -8/Garrison | Discovered new exit (range 15) 11733 | -8/Garrison | Triggered checkpoint 11890 | -8/Garrison | Expanded RIF knowledge: Alert ID Control 11922 | -8/Garrison | Triggered checkpoint 12112 | -8/Garrison | Entered Materials 12112 | -8/Materials | Accompanied by 9 allies 12201 | -8/Materials | Garrison activated, responded to threat 12267 | -8/Materials | Lost 4 allies 12349 | -8/Materials | Identified exit to Garrison 12537 | -8/Materials | Lost 5 allies 12625 | -8/Materials | Met 7R-MNS 12630 | -8/Materials | Discovered exit to Factory (range 13) 12650 | -8/Materials | Entered Factory 12650 | -7/Factory | Evolved 2 slots: Utility x2 12651 | -7/Factory | Caught up to 7R-MNS 12651 | -7/Factory | Identified exit to Storage 12652 | -7/Factory | FarCom data flow suspended 12655 | -7/Factory | Identified Decoy Drone Bay 12713 | -7/Factory | Build established: Bothacker-Mutant 12961 | -7/Factory | Discovered exit to Storage (range 16) 13258 | -7/Factory | Discovered new exit (range 4) 13263 | -7/Factory | Identified exit to Factory 13265 | -7/Factory | Entered another Factory area 13265 | -6/Factory | Evolved 2 slots: Utility x1, Weapon x1 13266 | -6/Factory | Caught up to 7R-MNS 13753 | -6/Factory | Garrison activated, responded to threat 13907 | -6/Factory | Discovered new exit (range 4) 13910 | -6/Factory | Identified exit to Factory 13935 | -6/Factory | Fabricated Hvy. Pick? 13943 | -6/Factory | Entered another Factory area 13943 | -5/Factory | Accompanied by 1 ally 13943 | -5/Factory | Evolved 2 slots: Propulsion x1, Utility x1 13944 | -5/Factory | Caught up to 7R-MNS 13993 | -5/Factory | Garrison activated, responded to threat 14480 | -5/Factory | Discovered new exit (range 16) 14541 | -5/Factory | Identified exit to Factory 14549 | -5/Factory | Entered another Factory area 14549 | -4/Factory | Accompanied by 1 ally 14549 | -4/Factory | Evolved 2 slots: Power x1, Utility x1 14550 | -4/Factory | Caught up to 7R-MNS 14589 | -4/Factory | Build established: Bothacker-Skirmisher 14632 | -4/Factory | Garrison activated, responded to threat 14725 | -4/Factory | Discovered new exit (range 14) 14750 | -4/Factory | Discovered new exit (range 3) 14753 | -4/Factory | Identified exit to Upper Caves 15198 | -4/Factory | 7R-MNS successfully reached the Upper Caves 15485 | -4/Factory | Cargo convoy interrupted 15565 | -4/Factory | Found Prototype Device 15565 | -4/Factory | Identified Exp. Transmission Jammer 15581 | -4/Factory | Found Prototype Device 15581 | -4/Factory | Identified Exp. Actuator Array 15595 | -4/Factory | Found Exp. Transmission Jammer 15673 | -4/Factory | Found PL-3XN's Ring of Power 15788 | -4/Factory | Destroyed 10 combat bots 15896 | -4/Factory | Found Quantum Capacitor 16050 | -4/Factory | Found Prototype Launcher 16077 | -4/Factory | Identified Com. Tesla Bomb Launcher 16140 | -4/Factory | Found Prototype Device 16274 | -4/Factory | P-70 Sage assimilated allied Sentinel 7a 16299 | -4/Factory | First assault squad dispatched 16362 | -4/Factory | Identified Adv. EM Shield 16474 | -4/Factory | Central database locked down 16548 | -4/Factory | Spotted B-86 Titan 16553 | -4/Factory | Identified exit to Garrison 16553 | -4/Factory | Entered Garrison 16635 | -4/Garrison | Triggered checkpoint 16672 | -4/Garrison | Garrison Relay disabled 16738 | -4/Garrison | Build established: Tank 16830 | -4/Garrison | Triggered checkpoint 16835 | -4/Garrison | Triggered checkpoint 16944 | -4/Garrison | Triggered checkpoint 16986 | -4/Garrison | Garrison Relay disabled 17073 | -4/Garrison | Discovered new exit (range 12) 17144 | -4/Garrison | Identified exit to Research 17215 | -4/Garrison | Triggered checkpoint 17288 | -4/Garrison | Discovered exit to Research (range 10) 17301 | -4/Garrison | Build established: Bothacker-Tank 17649 | -4/Garrison | Triggered checkpoint 17676 | -4/Garrison | Garrison Relay disabled 17826 | -4/Garrison | Build established: Commander-Tank 18232 | -4/Garrison | Triggered checkpoint 18270 | -4/Garrison | Garrison Relay disabled 18308 | -4/Garrison | Discovered exit to Research (range 15) 18338 | -4/Garrison | Expanded RIF knowledge: Command Fork 18496 | -4/Garrison | Found Relay Coupler [Proto] 18498 | -4/Garrison | Found Relay Coupler [Proto] 18501 | -4/Garrison | Found Relay Coupler [Proto] 18582 | -4/Garrison | Entered Research 18582 | -3/Research | Accompanied by 6 allies 18582 | -3/Research | Evolved 2 slots: Propulsion x1, Utility x1 18614 | -3/Research | Discovered new exit (range 30) 18710 | -3/Research | Lost 7 allies 18721 | -3/Research | Identified exit to Research 19101 | -3/Research | Build established: Bothacker-Tank 19205 | -3/Research | Spotted B-86 Titan 19214 | -3/Research | Destroyed B-86 Titan 19255 | -3/Research | Identified exit to Garrison 19255 | -3/Research | Entered Garrison 19255 | -3/Garrison | Accompanied by 1 ally 19295 | -3/Garrison | Triggered checkpoint 19347 | -3/Garrison | Garrison Relay disabled 19389 | -3/Garrison | Garrison Relay disabled 19461 | -3/Garrison | Triggered checkpoint 19529 | -3/Garrison | Expanded RIF knowledge: Patrol Navigation 19637 | -3/Garrison | Spotted B-86 Titan 19691 | -3/Garrison | Destroyed B-86 Titan 20067 | -3/Garrison | Triggered checkpoint 20172 | -3/Garrison | Triggered checkpoint 20173 | -3/Garrison | Triggered checkpoint 20181 | -3/Garrison | Triggered checkpoint 20286 | -3/Garrison | Lost 7 allies 20417 | -3/Garrison | Triggered checkpoint 20446 | -3/Garrison | Garrison Relay disabled 20472 | -3/Garrison | Build established: Botlord-Tank 20521 | -3/Garrison | Discovered new exit (range 9) 20741 | -3/Garrison | Triggered checkpoint 20790 | -3/Garrison | Garrison Relay disabled 20858 | -3/Garrison | Discovered new exit (range 15) 20878 | -3/Garrison | Identified exit to Research 21130 | -3/Garrison | Discovered exit to Research (range 11) 21177 | -3/Garrison | Triggered checkpoint 21193 | -3/Garrison | Garrison Relay disabled 21301 | -3/Garrison | Rescued a captive Derelict 21303 | -3/Garrison | Rescued a captive Derelict 21383 | -3/Garrison | Entered Research 21383 | -3/Research | Accompanied by 8 allies 21532 | -3/Research | Spotted B-86 Titan 21603 | -3/Research | Lost 3 allies 21607 | -3/Research | Discovered exit to Research (range 6) 21746 | -3/Research | Found Prototype Processor 21750 | -3/Research | Identified Exp. Melee Analysis Suite 21780 | -3/Research | Identified exit to Armory 21780 | -3/Research | Identified exit to Quarantine 22697 | -3/Research | Lost 5 allies 23099 | -3/Research | Found Unknown Device 23099 | -3/Research | Identified Launcher Loader 23357 | -3/Research | Found Quantum Capacitor 23974 | -3/Research | Build established: Botlord-Skirmisher 23989 | -3/Research | Entered Quarantine 23989 | -3/Quarantine | Accompanied by 2 allies 24237 | -3/Quarantine | P-80 Master assimilated allied Warden 8i 24286 | -3/Quarantine | Central database locked down 24460 | -3/Quarantine | Found Alien Artifact 24533 | -3/Quarantine | Found Alien Artifact 24542 | -3/Quarantine | Found Alien Artifact 24542 | -3/Quarantine | Identified Dimensional Node Initializer 24542 | -3/Quarantine | Initialized slip node 24625 | -3/Quarantine | P-80 Master assimilated allied Veteran 8g 24807 | -3/Quarantine | Identified Phase Armor 24807 | -3/Quarantine | Identified Transdimensional Reconstructor 24918 | -3/Quarantine | Found Spectral Analyzer 24957 | -3/Quarantine | Found Core Cannon 25037 | -3/Quarantine | Found Subatomic Replicator 25045 | -3/Quarantine | Discovered exit to Research (range 16) 25202 | -3/Quarantine | Lost 4 allies 25480 | -3/Quarantine | Build established: Bothacker-Tank 25522 | -3/Quarantine | Cryocooling Duct disabled 25537 | -3/Quarantine | Ambient heat levels rising (+20) 25537 | -3/Quarantine | Non-combat units ordered to evacuate 25672 | -3/Quarantine | Warped through subspace to slip node 25675 | -3/Quarantine | Found Dimensional Node Initializer 25688 | -3/Quarantine | Found Transdimensional Reconstructor 25692 | -3/Quarantine | Found Alien Artifact 26012 | -3/Quarantine | Identified exit to Garrison 26012 | -3/Quarantine | Entered Garrison 26282 | -3/Garrison | Triggered checkpoint 26361 | -3/Garrison | Triggered checkpoint 26364 | -3/Garrison | Triggered checkpoint 26368 | -3/Garrison | Triggered checkpoint 26368 | -3/Garrison | Spotted B-86 Titan 26377 | -3/Garrison | Destroyed B-86 Titan 26488 | -3/Garrison | Triggered checkpoint 26546 | -3/Garrison | Expanded RIF knowledge: Robot Detection 26835 | -3/Garrison | Found Fusion Bomb Launcher 26883 | -3/Garrison | Triggered checkpoint 26939 | -3/Garrison | Garrison Relay disabled 27053 | -3/Garrison | Spotted B-86 Titan 27053 | -3/Garrison | Spotted B-86 Titan 27470 | -3/Garrison | Discovered exit to Research (range 10) 27485 | -3/Garrison | Triggered checkpoint 27543 | -3/Garrison | Garrison Relay disabled 27876 | -3/Garrison | Triggered checkpoint 27891 | -3/Garrison | Garrison Relay disabled 27939 | -3/Garrison | Discovered exit to Research (range 10) 27953 | -3/Garrison | Entered Research 27953 | -2/Research | Accompanied by 1 ally 27953 | -2/Research | Evolved 2 slots: Power x1, Utility x1 28040 | -2/Research | Build established: Botlord-Tank 28159 | -2/Research | Discovered new exit (range 27) 28159 | -2/Research | Discovered new exit (range 59) 28189 | -2/Research | Fabricated Biometal Heavy Treads? 28380 | -2/Research | Identified exit to Testing 28420 | -2/Research | Entered Testing 28420 | -2/Testing | Accompanied by 1 ally 28553 | -2/Testing | Build established: Bothacker-Tank 28876 | -2/Testing | Found Prototype Energy Cannon 28876 | -2/Testing | Identified Hpw. Disruptor Cannon 29180 | -2/Testing | Identified Hpw. Transdimensional Reconstructor 29674 | -2/Testing | Found Prototype Energy Cannon 29674 | -2/Testing | Identified Cld. Nova Cannon 29732 | -2/Testing | Rewired PD-ENYRSF85GV 29757 | -2/Testing | Build established: Botlord-Tank 30062 | -2/Testing | Central database locked down 30229 | -2/Testing | Spotted Fortress 30238 | -2/Testing | Destroyed Fortress 30259 | -2/Testing | Found Prototype Device 30259 | -2/Testing | Identified Exp. Force Field 30326 | -2/Testing | System corruption reached 10% 30472 | -2/Testing | Discovered new exit (range 15) 30486 | -2/Testing | Discovered new exit (range 6) 30492 | -2/Testing | Identified exit to Section 7 30494 | -2/Testing | Entered Section 7 30654 | -2/Section 7 | Found Alien Artifact 30820 | -2/Section 7 | Identified Integrated Mediator 30828 | -2/Section 7 | Installed Integrated Mediator, increased core attachment efficiency 30845 | -2/Section 7 | Found Integrity Redistributor 31007 | -2/Section 7 | Found Integrated Dissipator 31008 | -2/Section 7 | Installed Integrated Dissipator, increased core heat dissipation (+20) 31156 | -2/Section 7 | Initialized slip node 31175 | -2/Section 7 | Discovered new exit (range 13) 31214 | -2/Section 7 | Garrison activated, responded to threat 31234 | -2/Section 7 | Build established: Bothacker-Tank 31587 | -2/Section 7 | Found Prototype Device 31672 | -2/Section 7 | Spotted S7 Guard 31696 | -2/Section 7 | Found Alien Artifact 31766 | -2/Section 7 | Spotted Executioner 31769 | -2/Section 7 | Spotted Executioner 31772 | -2/Section 7 | Destroyed Executioner 31804 | -2/Section 7 | Destroyed Executioner 31824 | -2/Section 7 | Found Exp. Core Analyzer 32100 | -2/Section 7 | Identified Adv. EM Shield 32100 | -2/Section 7 | Identified Navigation Efficiency Matrix 32123 | -2/Section 7 | Found Integrated Dissipator 32127 | -2/Section 7 | Installed Integrated Dissipator, increased core heat dissipation (+20) 32149 | -2/Section 7 | Build established: Scavenger-Mutant 32205 | -2/Section 7 | Found LRC Storage 32213 | -2/Section 7 | Found Alien Artifact 32224 | -2/Section 7 | Identified LRC Inertial Stabilizer 32225 | -2/Section 7 | Installed LRC Inertial Stabilizer, increased mass support (+10) 32227 | -2/Section 7 | Used Subatomic Replicator to replicate LRC Storage 32228 | -2/Section 7 | Installed LRC Storage, increased inventory capacity (+2) 32231 | -2/Section 7 | Installed LRC Storage, increased inventory capacity (+2) 32326 | -2/Section 7 | Spotted B-99 Colossus 32351 | -2/Section 7 | Used Integrity Redistributor, redistributed integrity from core (-381) 32360 | -2/Section 7 | Destroyed B-99 Colossus 32494 | -2/Section 7 | First assault squad dispatched 32529 | -2/Section 7 | Build established: Hauler-Tank 32551 | -2/Section 7 | Spotted Striker 32551 | -2/Section 7 | Spotted Striker 32619 | -2/Section 7 | Found Hpw. Transdimensional Reconstructor 32624 | -2/Section 7 | Found Transdimensional Reconstructor 32638 | -2/Section 7 | Warped through subspace to slip node 32641 | -2/Section 7 | Found Alien Artifact 32711 | -2/Section 7 | Found Prototype Processor 32732 | -2/Section 7 | Identified Exp. Signal Interpreter 32897 | -2/Section 7 | Garrison activated, responded to threat 32970 | -2/Section 7 | Found Alien Artifact 33005 | -2/Section 7 | Found Integrated Dissipator 33005 | -2/Section 7 | Installed Integrated Dissipator, increased core heat dissipation (+20) 33063 | -2/Section 7 | Warped through subspace to slip node 33064 | -2/Section 7 | Core integrity fell below 50% 33217 | -2/Section 7 | Identified exit to Garrison 33217 | -2/Section 7 | Entered Garrison 33239 | -2/Garrison | Expanded RIF knowledge: Command Fork 33283 | -2/Garrison | Triggered checkpoint 33347 | -2/Garrison | Garrison Relay disabled 33494 | -2/Garrison | Triggered checkpoint 33518 | -2/Garrison | Spotted B-90 Cyclops 33528 | -2/Garrison | Destroyed B-90 Cyclops 33586 | -2/Garrison | Triggered checkpoint 33605 | -2/Garrison | Triggered checkpoint 33623 | -2/Garrison | Triggered checkpoint 33667 | -2/Garrison | Discovered new exit (range 9) 33669 | -2/Garrison | Build established: Bothacker-Tank 33701 | -2/Garrison | Triggered checkpoint 33714 | -2/Garrison | Garrison Relay disabled 33853 | -2/Garrison | Discovered new exit (range 10) 33866 | -2/Garrison | Found embedded Infiltrators 33876 | -2/Garrison | Learned Access security intel 33895 | -2/Garrison | Triggered checkpoint 33914 | -2/Garrison | Garrison Relay disabled 34012 | -2/Garrison | Build established: Botlord-Tank 34067 | -2/Garrison | Triggered checkpoint 34110 | -2/Garrison | Identified Terrabomb 34110 | -2/Garrison | Used Terrabomb 34110 | -2/Garrison | Discovered new exit (range 20) 34174 | -2/Garrison | Garrison Relay disabled 34263 | -2/Garrison | Entered Access 34263 | -1/Access | Accompanied by 9 allies 34263 | -1/Access | Evolved 2 slots: Utility x2 34348 | -1/Access | Lost 5 allies 34442 | -1/Access | Unchained authorized (CL-0N3) 34626 | -1/Access | A-15 Conveyor reconstituted as V2 34626 | -1/Access | Spotted V2 34642 | -1/Access | Destroyed V2 34642 | -1/Access | V2 reconstituted as CL-0N3 35000 | -1/Access | Discovered new exit (range 7) 35010 | -1/Access | Entered Command 35010 | -1/Command | Accompanied by 3 allies 35427 | -1/Command | P-80 Master assimilated allied Warden 9d 36173 | -1/Command | P-80 Master assimilated allied Artificer 10b 36331 | -1/Command | Spotted M Guard 36331 | -1/Command | Spotted Combat Programmer 36332 | -1/Command | Spotted M Guard 36332 | -1/Command | Spotted Combat Programmer 36355 | -1/Command | Destroyed Combat Programmer 36357 | -1/Command | Destroyed Combat Programmer 36362 | -1/Command | Assimilated M Guard with formatsys_high 36381 | -1/Command | Destroyed M Guard 36763 | -1/Command | Build established: Hauler-Tank 36849 | -1/Command | Found Ragnarok Missile Launcher 37017 | -1/Command | All MAIN.C guards destroyed 37038 | -1/Command | Spotted Executioner 37056 | -1/Command | Destroyed Executioner 37074 | -1/Command | Lost 3 allies 37260 | -1/Command | First assault squad dispatched 37307 | -1/Command | Met MAIN.C 37363 | -1/Command | System corruption reached 10% 37363 | -1/Command | Destroyed MAIN.C Shell 37364 | -1/Command | MAIN.C activated Command garrisons 37384 | -1/Command | 0b10 Conduit disabled 37422 | -1/Command | Destroyed MAIN.C 37436 | -1/Command | Identified Core Reset Matrix 37436 | -1/Command | Discovered new exit (range 44) 37436 | -1/Command | Discovered new exit (range 75) 37436 | -1/Command | Extracted map data and part IDs from MAIN.C's data core 37546 | -1/Command | Spotted B-99 Colossus 37555 | -1/Command | Destroyed B-99 Colossus 37606 | -1/Command | Found Cld. Nova Cannon 37615 | -1/Command | Found Vortex Chain Reactor 37618 | -1/Command | Found Vortex Chain Reactor 37626 | -1/Command | Found Exp. System Purifier 37630 | -1/Command | Found Exp. Focal Shield 37902 | -1/Command | Spotted B-99 Colossus 37924 | -1/Command | Destroyed B-99 Colossus 38126 | -1/Command | Found Singularity Reactor 38547 | -1/Command | YOLO Cannon suddenly exploded 38548 | -1/Command | Core integrity fell below 50% 38578 | -1/Command | Lost 7 parts (2p2n1u2w) 38855 | -1/Command | Found Quantum Capacitor 39343 | -1/Command | Found Exp. Targeting Computer 39739 | -1/Command | Found Quantum Capacitor 40251 | -1/Command | Warped through subspace to slip node 40251 | -1/Command | Discovered new exit (range 4) 40259 | -1/Command | Entered Access_0 40260 | -1/Access_0 | Met Architect 40268 | -1/Access_0 | Destroyed A8 40273 | -1/Access_0 | Architect warped through subspace 40334 | -1/Access_0 | Architect warped through subspace 40359 | -1/Access_0 | Found Exp. Targeting Computer 40362 | -1/Access_0 | Found Adv. Kinecellerator 40398 | -1/Access_0 | Architect warped through subspace 40484 | -1/Access_0 | Architect warped through subspace 40546 | -1/Access_0 | Architect warped through subspace 40557 | -1/Access_0 | Build established: Hauler-Gunner 40582 | -1/Access_0 | AWS/Autocannon suddenly broke down 40633 | -1/Access_0 | Architect warped through subspace 40635 | -1/Access_0 | Core integrity fell below 20% 40679 | -1/Access_0 | Subspace Access Node disabled 40680 | -1/Access_0 | A6 warped into view 40680 | -1/Access_0 | Architect warped through subspace 40685 | -1/Access_0 | Warped through subspace to slip node 40685 | -1/Access_0 | Discovered new exit (range 8) 40697 | *** | Establishing 0b11! Last Messages --------------- Architect warps through subspace. 40680_ Beam penetrates A6. 40680_ A6 suffers critical hit (Destroy). 40680_ Destroyed Cld. Antigrav System. 40680_ A6 follow-up attacks with Enh. Force Lance. 40681_ A6: "I'm here! Did I miss the party? Oh hello there." 40682_ A6 follow-up attacks with Enh. Force Lance. 40683_ Beam penetrates A6. 40683_ A6 suffers critical hit (Destroy). 40683_ Destroyed Com. Particle Reactor. 40684_ A6 follow-up attacks with Enh. Force Lance. 40684_ Dropped Exp. Energy Well. 40685_ Extracted 600 energy. 40685_ Warped through subspace, drawn to slip node. 40685_ EXIT=FOUND 40685_ A0_RES: I have more important things to do than play hide-and-seek. Deal with this piece of junk if it returns. 40686_ Acquired Exp. Energy Well. [Achievement: 75k Club] [Achievement: Slow And Deadly Wins The Race] Map ----- +----------------------------------------------------+ | | | | | | | | | | | | | | | | | | | | | | | | | | | | | | | | | ?????????????????????????????????????????????????? | | ?????????????????????????????????????????????????? | | ?????????????????????????????????????????????????? | | ?????????????????????????????????????????????????? | | ?????????????????????????????????????????????????? | | ?????????????????????????????????????????????????? | | ????????????????????????###??????????????????????? | | ???????????????????????## ##?????????????????????? | | ???????????????????????# #?????????????????????? | | ???????????????????????# @ #?????????????????????? | | ??????????????????????## #?????????????????????? | | ??????????????????????# #?????????????????????? | | ??????????????????????# ##?????????????????????? | | ??????????????????????## #?????????????????????? | | ??????????????????????# #?????????????????????? | | ??????????????????????# ##?????????????????????? | | ??????????????????????# < #?????????????????????? | | ??????????????????????# ##?????????????????????? | | ??????????????????????## #??????????????????????? | | ???????????????????????####??????????????????????? | | ?????????????????????????????????????????????????? | | ?????????????????????????????????????????????????? | | ?????????????????????????????????????????????????? | | ?????????????????????????????????????????????????? | | ?????????????????????????????????????????????????? | | ?????????????????????????????????????????????????? | | ?????????????????????????????????????????????????? | | ?????????????????????????????????????????????????? | | ?????????????????????????????????????????????????? | | ?????????????????????????????????????????????????? | | ?????????????????????????????????????????????????? | | ?????????????????????????????????????????????????? | | ?????????????????????????????????????????????????? | | ?????????????????????????????????????????????????? | +----------------------------------------------------+ Best States ------------- Heat Dissipation 181 Coolant Potential 120 Energy Generation 75 Energy Capacity 1450 Matter Stores 300 Matter Capacity 300 Sight Range 24 Robot Scan Range 20 Terrain Scan Density 10 Jamming Range 22 Armor Coverage 1500 Resistance: KI 30 Resistance: EM 50 Point Defense Rating 240 Melee Speed Boost 20 Evasion (%) 50 Targeting Accuracy 24 Core Analysis 8 Armor Integrity Analysis 40 Recoil Reduction 6 Particle Charging 25 Kinecelleration 50 Offensive Hacking 10 Relay Coupler Types 4 Relay Coupler Value 121 Authchip Count 2 Item Schematics ----------------- Exp. Sensor Array | -9/Materials | Scanalyzed Imp. Assault Rifle | -9/Materials | Scanalyzed Imp. EM Shotgun | -9/Materials | Scanalyzed Adv. Matter Compressor | -3/Quarantine | Archive Exp. Matter Compressor | -3/Quarantine | Archive Adv. Dynamic Insulation System | -3/Quarantine | Archive Com. Mass Driver | -3/Quarantine | Archive Imp. Diametric Drive | -2/Testing | Archive Hvy. Dispersion Rifle | -2/Testing | Archive Adv. Plasma Rifle | -2/Testing | Archive Com. Tesla Bomb Launcher | -2/Testing | Archive Exp. Biometal Medium Treads | -2/Section 7 | Archive Neutron Missile Launcher | -2/Section 7 | Archive Exp. Core Analyzer | -2/Section 7 | Archive Imp. KE Penetrator | -2/Section 7 | Archive Exp. Targeting Computer | -2/Section 7 | Archive Prc. Energy Filter | -2/Section 7 | Archive Robot Schematics ------------------ H-77 Assassin | -3/Quarantine | Archive K-01 Serf | -2/Section 7 | Archive Fabricated ------------ Hvy. Pick | x2 | -6/Factory | Preloaded Biometal Heavy Treads | x1 | -2/Research | Preloaded Repaired ---------- Exp. Sensor Array | 62% | -9/Materials | Broken Lgt. Treads | 18% | -8/Materials Lgt. Treads | 30% | -8/Materials Studied --------- Wheel | -9/Materials | Hacked EM Shotgun | -9/Materials | Hacked Lgt. Cannon | -9/Materials | Hacked Med. Treads | -7/Factory | Hacked Imp. Datajack | -7/Factory | Hacked Imp. Remote Datajack | -4/Factory | Hacked Enh. Nova Cannon | -3/Research | Hacked Adv. Remote Datajack | -3/Quarantine | Hacked Nova Cannon | -3/Quarantine | Hacked Lgt. Quantum Reactor | -2/Testing | Hacked Mic. Antimatter Reactor | -2/Testing | Hacked Alien Tech Used ----------------- Dimensional Node Initializer Core Cannon Transdimensional Reconstructor Phase Armor Integrated Mediator Integrated Dissipator LRC Inertial Stabilizer Subatomic Replicator LRC Storage Integrity Redistributor Terrabomb High-powered Transdimensional Reconstructor Achievements -------------- 75k Club Botjacking Deductive Reasoning Drive-By Escorted To Danger Hack The Planet Hackerman Hammer Time Hot Stuff Jackpot Join The Dark Side Let Me Out Of Here Mindtrick Morally Flexible Not Today, Chutes Powerful Protocols Satisfying Sixth Sense Slow And Deadly Wins The Race Versatile Watcher Gambling YOLO You Will Be Upgraded Zeroed Repercussions Challenges ------------ None Game ------ Seed LightningLargePit Manual? 0 Play Time 09:19:21 Cumulative 977.7 hours Start 2025.10.23 @ 21:47:10 End 2025.10.24 @ 12:04:03 Sessions 11 Manual Loads 0 Difficulty Rogue Special Mode None Game No. 182 Rogue 182 Adventurer 0 Explorer 0 Win Type 1 Total 56 Types 23/6/10/1/3/1/6/3/2/1 Lore% 91 Gallery% 92 Achievement% 63 Wizard Run 0 Options --------- Layout 0 ASCII 0 Keyboard 0 Movement Numpad Keybinds 0 Fullscreen 1 Font 18/SmallcapsGlow Map View 76x50 Zoom Use 0% Tactical HUD 1 Map Filters NONE Filters NONE Steam 1 RUN: f00944e2-8456-4a3b-8d70-285f824fdd79